Workbook

Sheet PRINCIPAL
D1: Câmbio (R$/US$): | E1: 5 | J1: Planilha preparada por Luiz C. E. Rodriguez
D2: Custo Fixo Anual (R$/ha): | E2: 200 | J2: 14/06/2020 - ESALQ/USP
F3: Custo de Colheita (R$/m3)
E4: Preço/m3 | F4: Alta Tec | G4: Med Tec | H4: Baixa Tec
D5: Eucalipto p/ energia em pé (R$/m3): | E5: 35 | F5: 0 | G5: 0 | H5: 0
D6: Eucalipto p/ polpa (R$/m3): | E6: 60 | F6: 22 | G6: 23 | H6: 28
D7: Eucalipto p/ serraria (R$/m3): | E7: 200 | F7: 22 | G7: 23 | H7: 28
D8: Pinus p/ polpa (R$/m3): | E8: 35 | F8: 20 | G8: 22 | H8: 26
D9: Pinus p/ serraria (R$/m3): | E9: 210 | F9: 20 | G9: 22 | H9: 26
B10: Painel de opções 1:
B22: Painel de opções 2:

Sheet Componentes
A1: Valores básicos dos componentes de custo
A2: Valor da madeira ($): | G2: 35 | H2: =G2/J6 -> 35 | I2: <- valor corrigido pela taxa de câmbio selecionado pelo usuário
A3: Taxa de Câmbio: | G3: =PRINCIPAL!E1 -> 5
A4: Custo Fixo Anual de Administração: | G4: =PRINCIPAL!E2 -> 200 | H4: =G4/J6 -> 200 | I4: <- valor corrigido pela taxa de câmbio selecionado pelo usuário
J5: Auxiliar
A6: Mão-de-Obra | B6: Unidade | C6: US$/un | D6: US$/un (*) | E6: US$/h (**) | F6: R$/un. | G6: R$/h | J6: 1 | K6: <- taxa de câmbio depende da moeda selecionada pelo usuário
A7: Encarregado de Corte | B7: mês | C7: 500 | D7: =C7*$B$18 -> 950 | E7: =D7*(12/293)/8 -> 4.863481229 | F7: =D7*$G$3 -> 4750 | G7: =E7*$G$3 -> 24.31740614 | J7: =G7/$J$6 -> 24.31740614
A8: Mecânico | B8: mês | C8: 300 | D8: 570 | E8: =D8*(12/293)/8 -> 2.918088737 | F8: 2850 | G8: 14.59044369 | J8: =G8/$J$6 -> 14.59044369
A9: Motorista | B9: mês | C9: 450 | D9: 855 | E9: 4.377133106 | F9: 4275 | G9: 21.88566553 | J9: 21.88566553
A10: Operador de Moto-serra | B10: mês | C10: 300 | D10: 570 | E10: 2.918088737 | F10: 2850 | G10: 14.59044369 | J10: 14.59044369
A11: Ajudante de Op.de M.S. | B11: mês | C11: 180 | D11: 342 | E11: 1.750853242 | F11: 1710 | G11: 8.754266212 | J11: 8.754266212
A12: Braçal | B12: dia | C12: 12 | D12: 22.8 | E12: =D12/8 -> 2.85 | F12: 114 | G12: 14.25 | J12: 14.25
A13: Tratorista | B13: mês | C13: 200 | D13: 380 | E13: 1.945392491 | F13: 1900 | G13: 9.726962457 | J13: 9.726962457
A14: Administrador | B14: mês | C14: 600 | D14: 1140 | E14: 5.836177474 | F14: 5700 | G14: 29.18088737 | J14: 29.18088737
A15: Apontador | B15: mês | C15: 100 | D15: 190 | E15: 0.9726962457 | F15: 950 | G15: 4.863481229 | J15: 4.863481229
A16: Capataz | B16: mês | C16: 150 | D16: 285 | E16: 1.459044369 | F16: 1425 | G16: 7.295221843 | J16: 7.295221843
A17: Mensalista | B17: mês | C17: 100 | D17: 190 | E17: 0.9726962457 | F17: 950 | G17: 4.863481229 | J17: 4.863481229
A18: (*) Com encargos sociais e benefícios, i.é salário base vezes | B18: 1.9
A19: (**) Consideradas 8 h por dia e 293 dias úteis por ano
A22: Máquinas | B22: Unidade | C22: US$/un | D22: US$/un (*) | E22: US$/h (**) | F22: R$/un | G22: R$/un (*) | H22: R$/h (**) | I22: Auxiliar
A23: Pulverizador costal motorizado | B23: h | C23: 0.385 | D23: =C23*$B$42 -> 0.616 | E23: =C23*$B$43 -> 0.71225 | F23: =C23*$G$3 -> 1.925 | G23: =D23*$G$3 -> 3.08 | H23: =E23*$G$3 -> 3.56125 | I23: 3.56125 | J23: =I23/$J$6 -> 3.56125
A24: Caminhão (140 CV) | B24: h | C24: 2.25 | D24: 3.6 | E24: 4.1625 | F24: 11.25 | G24: 18 | H24: 20.8125 | I24: 20.8125 | J24: =I24/$J$6 -> 20.8125
A25: Caminhão + Carreta 4 ton. | B25: h | C25: 3.15 | D25: 5.04 | E25: 5.8275 | F25: 15.75 | G25: 25.2 | H25: 29.1375 | I25: 29.1375 | J25: 29.1375
A26: Pá carregadeira 930 | B26: h | C26: 4.25 | D26: 6.8 | E26: 7.8625 | F26: 21.25 | G26: 34 | H26: 39.3125 | I26: 39.3125 | J26: 39.3125
A27: Retroescavadeira | B27: h | C27: 4.875 | D27: 7.8 | E27: 9.01875 | F27: 24.375 | G27: 39 | H27: 45.09375 | I27: 45.09375 | J27: 45.09375
A28: Patrol | B28: h | C28: 6 | D28: 9.6 | E28: 11.1 | F28: 30 | G28: 48 | H28: 55.5 | I28: 55.5 | J28: 55.5
A29: Motoniveladora Caterpillar | B29: h | C29: 6.15 | D29: 9.84 | E29: 11.3775 | F29: 30.75 | G29: 49.2 | H29: 56.8875 | I29: 56.8875 | J29: 56.8875
A30: Triturador Florestal | B30: h | C30: 7.175 | D30: 11.48 | E30: 13.27375 | F30: 35.875 | G30: 57.4 | H30: 66.36875 | I30: 66.36875 | J30: 66.36875
A31: Trator Médio + Tanque pulverizador com 2 mangueiras | B31: h | C31: 4.75 | D31: 7.6 | E31: 8.7875 | F31: 23.75 | G31: 38 | H31: 43.9375 | I31: 43.9375 | J31: 43.9375
A32: Trator Médio + Pulverizador de barra (tanque 2000 l) | B32: h | C32: 5.125 | D32: 8.2 | E32: 9.48125 | F32: 25.625 | G32: 41 | H32: 47.40625 | I32: 47.40625 | J32: 47.40625
A33: MF 290 + Grade 28 discos | B33: h | C33: 6.4 | D33: 10.24 | E33: 11.84 | F33: 32 | G33: 51.2 | H33: 59.2 | I33: 59.2 | J33: 59.2
A34: MF 290 + Roçadeira | B34: h | C34: 6.75 | D34: 10.8 | E34: 12.4875 | F34: 33.75 | G34: 54 | H34: 62.4375 | I34: 62.4375 | J34: 62.4375
A35: MF 290 + Rolo CA-25 | B35: h | C35: 7.375 | D35: 11.8 | E35: 13.64375 | F35: 36.875 | G35: 59 | H35: 68.21875 | I35: 68.21875 | J35: 68.21875
A36: MF 290 + Aplicador calcário | B36: h | C36: 7.5 | D36: 12 | E36: 13.875 | F36: 37.5 | G36: 60 | H36: 69.375 | I36: 69.375 | J36: 69.375
A37: MF 290 + Aplicador Adubo Granulado | B37: h | C37: 7.75 | D37: 12.4 | E37: 14.3375 | F37: 38.75 | G37: 62 | H37: 71.6875 | I37: 71.6875 | J37: 71.6875
A38: MF 290 + Conjunto Irrigação Motobomba | B38: h | C38: 7.4 | D38: 11.84 | E38: 13.69 | F38: 37 | G38: 59.2 | H38: 68.45 | I38: 68.45 | J38: 68.45
A39: D6 + Lâmina | B39: h | C39: 5.6 | D39: 8.96 | E39: 10.36 | F39: 28 | G39: 44.8 | H39: 51.8 | I39: 51.8 | J39: 51.8
A40: D6 + Subsolador | B40: h | C40: 6.175 | D40: 9.88 | E40: 11.42375 | F40: 30.875 | G40: 49.4 | H40: 57.11875 | I40: 57.11875 | J40: 57.11875
A41: D6 + Rebaixador | B41: h | C41: 6.95 | D41: 11.12 | E41: 12.8575 | F41: 34.75 | G41: 55.6 | H41: 64.2875 | I41: 64.2875 | J41: 64.2875
A42: (*) Custos com depreciação, i.é custo base vezes | B42: 1.6
A43: (**) Aluguel no mercado de serviços, ié base vezes | B43: 1.85
A45: Insumos | B45: Unidade | C45: US$/un | D45: R$/un | E45: Auxiliar
A46: Mudas | B46: milhar | C46: 70 | D46: =C46*$G$3 -> 350 | E46: =D46/$J$6 -> 350
A47: Calcário dolomítico | B47: ton | C47: 17 | D47: 85 | E47: =D47/$J$6 -> 85
A48: Sulfato de Amônia | B48: ton | C48: 234.39 | D48: 1171.95 | E48: 1171.95
A49: Uréia | B49: ton | C49: 337.69 | D49: 1688.45 | E49: 1688.45
A50: Superfosfato Simples | B50: ton | C50: 164.78 | D50: 823.9 | E50: 823.9
A51: Cloreto de potássio | B51: ton | C51: 293.14 | D51: 1465.7 | E51: 1465.7
A52: NPK-6:30:6 | B52: ton | C52: 200 | D52: 1000 | E52: 1000
A53: NPK-8:5:18 | B53: ton | C53: 200 | D53: 1000 | E53: 1000
A54: NPK-10:00:10 | B54: ton | C54: 200 | D54: 1000 | E54: 1000
A55: Fomicida Granulado (isca) | B55: kg | C55: 8.82 | D55: 44.1 | E55: 44.1
A56: Round up | B56: l | C56: 13.57 | D56: 67.85 | E56: 67.85

Sheet Tecno
A1: Observação: | B1: para modificar os rendimentos, altere as tabelas digitadas a partir das linhas
B2: 110 (Alta tecnologia), 210 (Média Tecnologia) e 310 (Baixa Tecnologia).
A6: Definição de Rendimentos Operacionais (varia conforme a tecnologia/escala)
A7: PRIMEIRA ROTAÇÃO
A8: Plantio
B9: Braçal | C9: Tratorista | E9: Produto | F9: Quantidade | H9: Equipamento
A10: Conservação do Solo
A11: Construção de Aceiros
A12: Calagem | B12: 1.2 | C12: 1.2 | E12: Calcário dolomítico | F12: 4 | H12: MF 290 + Aplicador calcário
A13: Combate a formiga 1 | B13: 2.32 | E13: Formicida granulado | F13: 1.5
A14: Combate a formiga 2
A15: Combate a formiga 3
A16: Controle Químico Mec. Total
A17: Subsolagem
A18: Coveamento | B18: 16
A19: Adubação | B19: 1.2 | C19: 1.2 | E19: NPK-6:30:6 | F19: 200 | H19: MF 290 + Aplicador Adubo Granulado
A20: Plantio | B20: 12 | C20: 3 | E20: Mudas | F20: 1667 | H20: Valmet 880 + carreta
A21: Irrigação
A22: Levantamento Sobrevivência
A23: Replantio
A24: Adubação cobertura
A25: Primeira Manutenção
A27: Conservação do Solo
A28: Controle Químico Linha | B28: 6 | E28: Round up | F28: 0.94 | H28: Pulverizador costal motorizado
A29: Controle Químico Entrelinha
A30: Controle de formigas | B30: 1.8 | E30: Formicida granulado | F30: 0.7 | H30: Caminhão + Carreta 4 ton.
A31: Adubação de reforço manual | B31: 11.63 | C31: 0.94 | E31: NPK-6:30:6 | F31: 200
A32: Manutenção de Aceiros
A33: Segunda Manutenção
A35: Controle Químico Entrelinha
A36: Fosfatagem
A37: Roçada Manual Linha | B37: 8
A38: Patrolamento Aceiro
A39: Terceira Manutenção
A41: Controle Químico Entrelinha
A42: Adubação de Manutenção
A43: Controle formiga manutenção | B43: 1.4 | E43: Formicida granulado | F43: 0.6
A44: Patrolamento Aceiro
A45: Demais Manutenções
A47: Controle formiga manutenção | B47: 1.4 | E47: Formicida granulado | F47: 0.6
A48: Patrolamento Aceiro
A50: SEGUNDA ROTAÇÃO
A51: Primeira Manutenção
B52: Braçal | C52: Tratorista | E52: Produto | F52: Quantidade | H52: Equipamento
A53: Controle Químico Linha | B53: 6 | E53: Round up | F53: 0.94
A54: Controle Químico Entrelinha
A55: Controle de formigas | B55: 1.8 | E55: Formicida granulado | F55: 0.7
A56: Adubação de Manutenção | B56: 0.1 | C56: 0.42 | E56: NPK-8:5:18 líquido | F56: 200 | H56: Trator Médio + Tanque pulverizador com 2 mangueiras
A57: Patrolamento Aceiro
A58: Segunda Manutenção
A60: Controle Químico Entrelinha
A61: Fosfatagem | B61: 0.66 | C61: 1.02 | E61: Superfosfato Simples | F61: 300 | H61: MF 290 + Aplicador Adubo Granulado
A62: Desbrota | B62: 12 | H62: Motoroçadeira
A63: Roçada Manual Linha | B63: 4
A64: Patrolamento Aceiro
A65: Terceira Manutenção
A67: Controle Químico Entrelinha
A68: Adubação de Manutenção
A69: Controle formiga manutenção | B69: 1.4 | E69: Formicida granulado | F69: 0.6
A70: Patrolamento Aceiro
A71: Demais Manutenções
A73: Controle formiga manutenção | B73: 1.4 | E73: Formicida granulado | F73: 0.6
A74: Patrolamento Aceiro
A76: TERCEIRA ROTAÇÃO
A77: Primeira Manutenção
B78: Braçal | C78: Tratorista | E78: Produto | F78: Quantidade | H78: Equipamento
A79: Controle Químico Linha | B79: 6 | E79: Round up | F79: 0.94
A80: Controle Químico Entrelinha
A81: Controle de formigas | B81: 1.8 | E81: Formicida granulado | F81: 0.7
A82: Adubação de Manutenção | B82: 0.1 | C82: 0.42 | E82: NPK-8:5:18 líquido | F82: 200 | H82: Trator Médio + Tanque pulverizador com 2 mangueiras
A83: Patrolamento Aceiro
A84: Segunda Manutenção
A86: Controle Químico Entrelinha
A87: Fosfatagem | B87: 0.66 | C87: 1.02 | E87: Superfosfato Simples | F87: 300 | H87: MF 290 + Aplicador Adubo Granulado
A88: Desbrota | B88: 12 | H88: Motoroçadeira
A89: Roçada Manual Linha | B89: 4
A90: Patrolamento Aceiro
A91: Terceira Manutenção
A93: Controle Químico Entrelinha
A94: Adubação de Manutenção
A95: Controle formiga manutenção | B95: 1.4 | E95: Formicida granulado | F95: 0.6
A96: Patrolamento Aceiro
A97: Demais Manutenções
A99: Controle formiga manutenção | B99: 1.4 | E99: Formicida granulado | F99: 0.6
A100: Patrolamento Aceiro
A109: Alta Tecnologia / Grande Escala
A110: PRIMEIRA ROTAÇÃO
A111: Plantio
B112: Braçal | C112: Tratorista | E112: Produto | F112: Quantidade | H112: Equipamento
A113: Conservação do Solo | B113: 1.2 | C113: 1.2 | H113: Motoniveladora Caterpillar
A114: Construção de Aceiros | B114: 6.4 | C114: 6.4 | H114: Motoniveladora Caterpillar
A115: Calagem | B115: 1.2 | C115: 1.2 | E115: Calcário dolomítico | F115: 4 | H115: MF 290 + Aplicador calcário
A116: Combate a formiga 1 | B116: 2.32 | E116: Formicida granulado | F116: 1.5
A117: Combate a formiga 2 | B117: 2.81 | E117: Formicida granulado | F117: 0.75
A118: Combate a formiga 3 | B118: 2.81 | E118: Formicida granulado | F118: 0.5
A119: Controle Químico Mec. Total | B119: 1.04 | C119: 1.04 | E119: Round up | F119: 5.01 | H119: Trator Médio + Tanque pulverizador com 2 mangueiras
A120: Subsolagem | B120: 1.06 | C120: 1.23 | H120: D6 + Subsolador
A121: Coveamento | B121: 8.36
A122: Adubação | B122: 1.2 | C122: 1.2 | E122: NPK-6:30:6 | F122: 250 | H122: MF 290 + Aplicador Adubo Granulado
A123: Plantio | B123: 8.44 | C123: 0.55 | E123: Mudas | F123: 1667 | H123: Valmet 880 + carreta
A124: Irrigação | B124: 0.5 | C124: 0.12 | H124: Trator Médio + Tanque pulverizador com 2 mangueiras
A125: Levantamento Sobrevivência | B125: 0.42
A126: Replantio | B126: 2.62 | C126: 0.13 | H126: Valmet 880 + carreta
A127: Adubação cobertura | B127: 0.02 | C127: 0.62 | E127: NPK-10:00:10 | F127: 375 | H127: MF 290 + Aplicador Adubo Granulado
A128: Primeira Manutenção
A130: Conservação do Solo | B130: 1.2 | C130: 1.2 | H130: Motoniveladora Caterpillar
A131: Controle Químico Linha | B131: 4.65 | E131: Round up | F131: 0.94 | H131: Pulverizador costal motorizado
A132: Controle Químico Entrelinha | C132: 1.3 | E132: Round up | F132: 2.97 | H132: Trator Médio + Tanque pulverizador com 2 mangueiras
A133: Controle de formigas | B133: 1.8 | E133: Formicida granulado | F133: 0.7 | H133: Caminhão + Carreta 4 ton.
A134: Adubação de reforço manual | B134: 11.63 | C134: 0.94 | E134: NPK-6:30:6 | F134: 200
A135: Manutenção de Aceiros | B135: 2.13 | C135: 0.05 | H135: Motoniveladora Caterpillar
A136: Segunda Manutenção
A138: Controle Químico Entrelinha | C138: 1.3 | E138: Round up | F138: 2.97 | H138: Trator Médio + Tanque pulverizador com 2 mangueiras
A139: Fosfatagem | B139: 0.66 | C139: 1.02 | E139: Superfosfato Simples | F139: 300 | H139: MF 290 + Aplicador Adubo Granulado
A140: Roçada Manual Linha | B140: 5.27
A141: Patrolamento Aceiro | C141: 1.3 | H141: Patrol
A142: Terceira Manutenção
A144: Controle Químico Entrelinha | C144: 1.3 | E144: Round up | F144: 2.97 | H144: Trator Médio + Tanque pulverizador com 2 mangueiras
A145: Adubação de Manutenção | B145: 0.01 | C145: 0.42 | E145: NPK-8:5:18 líquido | F145: 300 | H145: Trator Médio + Tanque pulverizador com 2 mangueiras
A146: Controle formiga manutenção | B146: 1.4 | E146: Formicida granulado | F146: 0.6
A147: Patrolamento Aceiro | C147: 1.3 | H147: Patrol
A148: Demais Manutenções
A150: Controle formiga manutenção | B150: 1.4 | E150: Formicida granulado | F150: 0.6
A151: Patrolamento Aceiro | C151: 1.3 | H151: Patrol
A153: SEGUNDA ROTAÇÃO
A154: Primeira Manutenção
B155: Braçal | C155: Tratorista | E155: Produto | F155: Quantidade | H155: Equipamento
A156: Controle Químico Linha | B156: 4.65 | E156: Round up | F156: 0.94
A157: Controle Químico Entrelinha | C157: 1.3 | E157: Round up | F157: 2.97 | H157: Trator Médio + Tanque pulverizador com 2 mangueiras
A158: Controle de formigas | B158: 1.8 | E158: Formicida granulado | F158: 0.7
A159: Adubação de Manutenção | B159: 0.01 | C159: 0.42 | E159: NPK-8:5:18 líquido | F159: 300 | H159: Trator Médio + Tanque pulverizador com 2 mangueiras
A160: Patrolamento Aceiro | C160: 1.3 | H160: Patrol
A161: Segunda Manutenção
A163: Controle Químico Entrelinha | C163: 1.3 | E163: Round up | F163: 2.97 | H163: Trator Médio + Tanque pulverizador com 2 mangueiras
A164: Fosfatagem | B164: 0.66 | C164: 1.02 | E164: Superfosfato Simples | F164: 300 | H164: MF 290 + Aplicador Adubo Granulado
A165: Desbrota | B165: 14.6 | H165: Motoroçadeira
A166: Roçada Manual Linha | B166: 5.27
A167: Patrolamento Aceiro | C167: 1.3 | H167: Patrol
A168: Terceira Manutenção
A170: Controle Químico Entrelinha | C170: 1.3 | E170: Round up | F170: 2.97 | H170: Trator Médio + Tanque pulverizador com 2 mangueiras
A171: Adubação de Manutenção | B171: 0.01 | C171: 0.42 | E171: NPK-8:5:18 líquido | F171: 300 | H171: Trator Médio + Tanque pulverizador com 2 mangueiras
A172: Controle formiga manutenção | B172: 1.4 | E172: Formicida granulado | F172: 0.6
A173: Patrolamento Aceiro | C173: 1.3 | H173: Patrol
A174: Demais Manutenções
A176: Controle formiga manutenção | B176: 1.4 | E176: Formicida granulado | F176: 0.6
A177: Patrolamento Aceiro | C177: 1.3 | H177: Patrol
A179: TERCEIRA ROTAÇÃO
A180: Primeira Manutenção
B181: Braçal | C181: Tratorista | E181: Produto | F181: Quantidade | H181: Equipamento
A182: Controle Químico Linha | B182: 4.65 | E182: Round up | F182: 0.94
A183: Controle Químico Entrelinha | C183: 1.3 | E183: Round up | F183: 2.97 | H183: Trator Médio + Tanque pulverizador com 2 mangueiras
A184: Controle de formigas | B184: 1.8 | E184: Formicida granulado | F184: 0.7
A185: Adubação de Manutenção | B185: 0.01 | C185: 0.42 | E185: NPK-8:5:18 líquido | F185: 300 | H185: Trator Médio + Tanque pulverizador com 2 mangueiras
A186: Patrolamento Aceiro | C186: 1.3 | H186: Patrol
A187: Segunda Manutenção
A189: Controle Químico Entrelinha | C189: 1.3 | E189: Round up | F189: 2.97 | H189: Trator Médio + Tanque pulverizador com 2 mangueiras
A190: Fosfatagem | B190: 0.66 | C190: 1.02 | E190: Superfosfato Simples | F190: 300 | H190: MF 290 + Aplicador Adubo Granulado
A191: Desbrota | B191: 14.6 | H191: Motoroçadeira
A192: Roçada Manual Linha | B192: 5.27
A193: Patrolamento Aceiro | C193: 1.3 | H193: Patrol
A194: Terceira Manutenção
A196: Controle Químico Entrelinha | C196: 1.3 | E196: Round up | F196: 2.97 | H196: Trator Médio + Tanque pulverizador com 2 mangueiras
A197: Adubação de Manutenção | B197: 0.01 | C197: 0.42 | E197: NPK-8:5:18 líquido | F197: 300 | H197: Trator Médio + Tanque pulverizador com 2 mangueiras
A198: Controle formiga manutenção | B198: 1.4 | E198: Formicida granulado | F198: 0.6
A199: Patrolamento Aceiro | C199: 1.3 | H199: Patrol
A200: Demais Manutenções
A202: Controle formiga manutenção | B202: 1.4 | E202: Formicida granulado | F202: 0.6
A203: Patrolamento Aceiro | C203: 1.3 | H203: Patrol
A209: Média Tecnologia / Média Escala
A210: PRIMEIRA ROTAÇÃO
A211: Plantio
B212: Braçal | C212: Tratorista | E212: Produto | F212: Quantidade | H212: Equipamento
A213: Conservação do Solo
A214: Construção de Aceiros | B214: 5 | C214: 5 | H214: Motoniveladora Caterpillar
A215: Calagem | B215: 1.2 | C215: 1.2 | E215: Calcário dolomítico | F215: 4 | H215: MF 290 + Aplicador calcário
A216: Combate a formiga 1 | B216: 2.32 | E216: Formicida granulado | F216: 1.5
A217: Combate a formiga 2 | B217: 2.81 | E217: Formicida granulado | F217: 0.75
A218: Combate a formiga 3
A219: Controle Químico Mec. Total | B219: 1.04 | C219: 1.04 | E219: Round up | F219: 5.01 | H219: Trator Médio + Tanque pulverizador com 2 mangueiras
A220: Subsolagem
A221: Coveamento | B221: 8.36
A222: Adubação | B222: 1.2 | C222: 1.2 | E222: NPK-6:30:6 | F222: 200 | H222: MF 290 + Aplicador Adubo Granulado
A223: Plantio | B223: 8.44 | C223: 0.55 | E223: Mudas | F223: 1667 | H223: Valmet 880 + carreta
A224: Irrigação
A225: Levantamento Sobrevivência
A226: Replantio
A227: Adubação cobertura | B227: 0.02 | C227: 0.62 | E227: NPK-10:00:10 | F227: 300 | H227: MF 290 + Aplicador Adubo Granulado
A228: Primeira Manutenção
A230: Conservação do Solo
A231: Controle Químico Linha | B231: 4.65 | E231: Round up | F231: 0.94 | H231: Pulverizador costal motorizado
A232: Controle Químico Entrelinha
A233: Controle de formigas | B233: 1.8 | E233: Formicida granulado | F233: 0.7 | H233: Caminhão + Carreta 4 ton.
A234: Adubação de reforço manual | B234: 11.63 | C234: 0.94 | E234: NPK-6:30:6 | F234: 200
A235: Manutenção de Aceiros | B235: 1.05 | C235: 0.05 | H235: Motoniveladora Caterpillar
A236: Segunda Manutenção
A238: Controle Químico Entrelinha
A239: Fosfatagem | B239: 0.66 | C239: 1.02 | E239: Superfosfato Simples | F239: 250 | H239: MF 290 + Aplicador Adubo Granulado
A240: Roçada Manual Linha | B240: 5.27
A241: Patrolamento Aceiro | C241: 0.7 | H241: Patrol
A242: Terceira Manutenção
... 134 more rows

Sheet TabProd
A1: Eucalyptus
C2: Polpa | G2: Energia
A3: 1a. Rotação | B3: coficientes do modelo | F3: coeficientes do modelo
B4: Alta | C4: Média | D4: Baixa | F4: Alta | G4: Média | H4: Baixa
A5: b= | B5: 10.85 | C5: 9.3 | D5: 9 | F5: 12.6 | H5: 16
A6: a= | B6: 0.24 | C6: 0.26 | D6: 0.23 | F6: 0.24 | H6: 0.18
A7: q= | B7: 2.81 | C7: 2.87 | D7: 2.92 | F7: 2.5 | H7: 2.2
A8: 2a. Rotação
A9: b= | B9: 13.95 | C9: 12.1 | D9: 10.6 | F9: 14.5 | H9: 15.13
A10: a= | B10: 0.26 | C10: 0.27 | D10: 0.26 | F10: 0.23 | H10: 0.2
A11: q= | B11: 2.46 | C11: 2.5 | D11: 2.57 | F11: 2.32 | H11: 2.16
A12: Age | E12: Age | G12: Interpolation
A13: 7 | B13: =((B5*(1-EXP(-B6*A13)))^B7)*0.7 -> 318.3826401 | C13: =((C5*(1-EXP(-C6*A13)))^C7)*0.7 -> 253.6974686 | D13: =(($D$5*(1-EXP(-$D$6*A13)))^$D$7)*0.7 -> 223.1963399 | E13: 7 | F13: =((F5*(1-EXP(-F6*E13)))^F7)*0.7 -> 235.5518289 | G13: =H13+(F13-H13)/2 -> 192.6621879 | H13: =((H5*(1-EXP(-H6*E13)))^H7)*0.7 -> 149.7725468
A14: 7 | B14: =((B9*(1-EXP(-B10*A14)))^B11)*0.7 -> 296.4135456 | C14: =((C9*(1-EXP(-C10*A14)))^C11)*0.7 -> 236.7221276 | D14: =((D9*(1-EXP(-D10*A14)))^D11)*0.7 -> 191.7948508 | E14: 7 | F14: =((F9*(1-EXP(-F10*E14)))^F11)*0.7 -> 206.4344193 | G14: =H14+(F14-H14)/2 -> 170.344519 | H14: =((H9*(1-EXP(-H10*E14)))^H11)*0.7 -> 134.2546186
E15: 7 | F15: =F14*(1-(F13-F14)/F13) -> 180.9163176 | G15: =G14*(1-(G13-G14)/G13) -> 150.6120919 | H15: =H14*(1-(H13-H14)/H13) -> 120.3445023 | I15: <- mesmo % da 1a para a 2a rotação
B16: Dependente da Tecnol. | F16: Dependente da Tecnol.
B17: Volume | C17: Custo | F17: Volume | G17: Custo
B18: 223.1963399 | C18: 28 | F18: 149.7725468 | G18: 0
B19: 191.7948508 | C19: 28 | F19: 134.2546186 | G19: 0
F20: 120.3445023 | G20: 0
A21: Serraria
A22: Plantio: | B22: 833 | D22: Baixa | G22: Média | J22: Alta
A23: Desbastes | B23: Idade | C23: Árv. Rem. | D23: Vol Energia | E23: Vol Polpa | F23: Vol Sólido | G23: Vol Energia | H23: Vol Polpa | I23: Vol Sólido | J23: Vol Energia | K23: Vol Polpa | L23: Vol Sólido
A24: 1 | B24: 4 | C24: 500 | D24: =J24*0.7 -> 48.50472778 | E24: =K24*0.7 -> 0 | F24: 0 | G24: =J24*0.8 -> 55.4339746 | H24: 0 | I24: 0 | J24: =(($D$5*(1-EXP(-$D$6*$B24)))^$D$7)*0.5 -> 69.29246825 | K24: 0 | L24: 0
A25: 2 | B25: 8 | C25: 275 | D25: =J25*0.7 -> 0 | E25: 129.1622947 | F25: 0 | G25: 0 | H25: 147.6140511 | I25: 0 | J25: 0 | K25: =(($D$5*(1-EXP(-$D$6*$B25)))^$D$7)*0.5 -> 184.5175638 | L25: 0
A26: Corte Raso | B26: 15 | C26: 0 | D26: =J26*0.7 -> 0 | E26: 116.8682804 | F26: 272.6926543 | G26: 0 | H26: 133.563749 | I26: 311.6487478 | J26: 0 | K26: =((($D$5*(1-EXP(-$D$6*$B26)))^$D$7)*0.5)*3/5 -> 166.9546863 | L26: =(($D$5*(1-EXP(-$D$6*$B26)))^$D$7)*0.7 -> 389.5609347
B27: Volumes dependentes da Tecnol. | F27: Custos dependentes da Tecnol.
B28: Energia | C28: Polpa | D28: Sólido | F28: Energia | G28: Polpa | H28: Sólido
B29: 48.50472778 | C29: 0 | D29: 0 | F29: 0 | G29: 0 | H29: 0
B30: 0 | C30: 129.1622947 | D30: 0 | F30: 0 | G30: 28 | H30: 0
B31: 0 | C31: 116.8682804 | D31: 272.6926543 | F31: 0 | G31: 28 | H31: 28
A33: Pinus
A34: Vol Polpa | F34: Vol. dependente | H34: Custo dependente
A35: Age | B35: Alta | C35: Média | D35: Baixa | F35: da Tecnol. | H35: da Tecnol.
A36: 12 | B36: 364 | C36: =B36*0.8 -> 291.2 | D36: =B36*0.7 -> 254.8 | F36: 254.8 | H36: 26
A39: Serraria
A40: Plantio: | B40: 1111 | D40: Baixa | F40: Média | H40: Alta
A41: Desbastes | B41: Idade | C41: Árv. Rem. | D41: Vol Polpa | E41: Vol Sólido | F41: Vol Polpa | G41: Vol Sólido | H41: Vol Polpa | I41: Vol Sólido
A42: 1 | B42: 8 | C42: 550 | D42: =H42*0.7 -> 27.09 | E42: 0 | F42: =H42*0.8 -> 30.96 | G42: 0 | H42: 38.7 | I42: 0
A43: 2 | B43: 12 | C43: 250 | D43: 15.75 | E43: 42 | F43: 18 | G43: 48 | H43: 22.5 | I43: 60
A44: Corte Raso | B44: 18 | C44: 0 | D44: 11.9 | E44: 182 | F44: 13.6 | G44: 208 | H44: 17 | I44: 260
B45: Dependente da Tecnol. | E45: Dependente da Tecnol.
B46: Polpa | C46: Sólido | E46: Polpa | F46: Sólido
B47: 27.09 | C47: 0 | E47: 26 | F47: 0
B48: 15.75 | C48: 42 | E48: 26 | F48: 26
B49: 11.9 | C49: 182 | E49: 26 | F49: 26

Sheet EucPol1Rot
A1: Detalhamento dos Custos das Operações - Eucalipto p/ Polpa - Ciclos c/ 1 Rotação
A2: (Rendimento técnico da MDO em homem-hora/hectare)
A3: (Para MDO, considerou-se apenas MDO tipo braçal e tratorista)
A4: (Rendimento técnico do equipamento em hora-máquina/hectare)
A5: (Custo total da operação em $/hectare)
A7: PRIMEIRA ROTAÇÃO | D7: Volume aos 7 anos (m3): | E7: 253.6974686
A8: Plantio | B8: Mão-de-Obra | E8: Insumo | H8: Máquinas
B9: Braçal | C9: Tratorista | D9: Custo | E9: Produto | F9: Quantidade | G9: Custo | H9: Equipamento | I9: Custo | J9: Custo Total
A10: Conservação do Solo | B10: =Tecno!B10 -> 0 | C10: =Tecno!C10 -> 0 | D10: =B10*Componentes!$J$12+C10*Componentes!$J$13 -> 0 | E10: =IF(Tecno!E10<>"",Tecno!E10,"") ->  | F10: =Tecno!F10 -> 0 | H10: =IF(Tecno!H10<>"",Tecno!H10,"") ->  | I10: =Componentes!J29*C10 -> 0 | J10: =D10+G10+I10 -> 0
A11: Construção de Aceiros | B11: =Tecno!B11 -> 0 | C11: =Tecno!C11 -> 0 | D11: =B11*Componentes!$J$12+C11*Componentes!$J$13 -> 0 | E11: =IF(Tecno!E11<>"",Tecno!E11,"") ->  | F11: =Tecno!F11 -> 0 | H11: =IF(Tecno!H11<>"",Tecno!H11,"") ->  | I11: =Componentes!J29*C11 -> 0 | J11: =D11+G11+I11 -> 0
A12: Calagem | B12: =Tecno!B12 -> 1.2 | C12: =Tecno!C12 -> 1.2 | D12: =B12*Componentes!$J$12+C12*Componentes!$J$13 -> 28.77235495 | E12: =IF(Tecno!E12<>"",Tecno!E12,"") -> Calcário dolomítico | F12: =Tecno!F12 -> 4 | G12: =F12*Componentes!E47 -> 340 | H12: =IF(Tecno!H12<>"",Tecno!H12,"") -> MF 290 + Aplicador calcário | I12: =Componentes!J36*C12 -> 83.25 | J12: =D12+G12+I12 -> 452.0223549
A13: Combate a formiga 1 | B13: =Tecno!B13 -> 2.32 | C13: =Tecno!C13 -> 0 | D13: =B13*Componentes!$J$12+C13*Componentes!$J$13 -> 33.06 | E13: =IF(Tecno!E13<>"",Tecno!E13,"") -> Formicida granulado | F13: =Tecno!F13 -> 1.5 | G13: =F13*Componentes!$E$55 -> 66.15 | H13: =IF(Tecno!H13<>"",Tecno!H13,"") ->  | J13: 99.21
A14: Combate a formiga 2 | B14: =Tecno!B14 -> 0 | C14: =Tecno!C14 -> 0 | D14: =B14*Componentes!$J$12+C14*Componentes!$J$13 -> 0 | E14: =IF(Tecno!E14<>"",Tecno!E14,"") ->  | F14: =Tecno!F14 -> 0 | G14: =F14*Componentes!$E$55 -> 0 | H14: =IF(Tecno!H14<>"",Tecno!H14,"") ->  | J14: 0
A15: Combate a formiga 3 | B15: =Tecno!B15 -> 0 | C15: =Tecno!C15 -> 0 | D15: =B15*Componentes!$J$12+C15*Componentes!$J$13 -> 0 | E15: =IF(Tecno!E15<>"",Tecno!E15,"") ->  | F15: =Tecno!F15 -> 0 | G15: =F15*Componentes!$E$55 -> 0 | H15: =IF(Tecno!H15<>"",Tecno!H15,"") ->  | J15: 0
A16: Controle Químico Mec. Total | B16: =Tecno!B16 -> 0 | C16: =Tecno!C16 -> 0 | D16: =B16*Componentes!$J$12+C16*Componentes!$J$13 -> 0 | E16: =IF(Tecno!E16<>"",Tecno!E16,"") ->  | F16: =Tecno!F16 -> 0 | G16: =F16*Componentes!$E$56 -> 0 | H16: =IF(Tecno!H16<>"",Tecno!H16,"") ->  | I16: =Componentes!$J$31*C16 -> 0 | J16: 0
A17: Subsolagem | B17: =Tecno!B17 -> 0 | C17: =Tecno!C17 -> 0 | D17: =B17*Componentes!$J$12+C17*Componentes!$J$13 -> 0 | E17: =IF(Tecno!E17<>"",Tecno!E17,"") ->  | F17: =Tecno!F17 -> 0 | H17: =IF(Tecno!H17<>"",Tecno!H17,"") ->  | I17: =Componentes!J40*C17 -> 0 | J17: 0
A18: Coveamento | B18: =Tecno!B18 -> 16 | C18: =Tecno!C18 -> 0 | D18: =B18*Componentes!$J$12+C18*Componentes!$J$13 -> 228 | E18: =IF(Tecno!E18<>"",Tecno!E18,"") ->  | F18: =Tecno!F18 -> 0 | H18: =IF(Tecno!H18<>"",Tecno!H18,"") ->  | J18: 228
A19: Adubação | B19: =Tecno!B19 -> 1.2 | C19: =Tecno!C19 -> 1.2 | D19: =B19*Componentes!$J$12+C19*Componentes!$J$13 -> 28.77235495 | E19: =IF(Tecno!E19<>"",Tecno!E19,"") -> NPK-6:30:6 | F19: =Tecno!F19 -> 200 | G19: =F19*Componentes!$E$52/1000 -> 200 | H19: =IF(Tecno!H19<>"",Tecno!H19,"") -> MF 290 + Aplicador Adubo Granulado | I19: =Componentes!J37*C19 -> 86.025 | J19: 314.7973549
A20: Plantio | B20: =Tecno!B20 -> 12 | C20: =Tecno!C20 -> 3 | D20: =B20*Componentes!$J$12+C20*Componentes!$J$13 -> 200.1808874 | E20: =IF(Tecno!E20<>"",Tecno!E20,"") -> Mudas | F20: =Tecno!F20 -> 1667 | G20: =F20*Componentes!E46/1000 -> 583.45 | H20: =IF(Tecno!H20<>"",Tecno!H20,"") -> Valmet 880 + carreta | I20: =Componentes!J39*C20 -> 155.4 | J20: =D20+G20+I20 -> 939.0308874
A21: Irrigação | B21: =Tecno!B21 -> 0 | C21: =Tecno!C21 -> 0 | D21: =B21*Componentes!$J$12+C21*Componentes!$J$13 -> 0 | E21: =IF(Tecno!E21<>"",Tecno!E21,"") ->  | F21: =Tecno!F21 -> 0 | H21: =IF(Tecno!H21<>"",Tecno!H21,"") ->  | I21: =1.31*Componentes!J31 -> 57.558125 | J21: =D21+G21+I21 -> 57.558125
A22: Levantamento Sobrevivência | B22: =Tecno!B22 -> 0 | C22: =Tecno!C22 -> 0 | D22: =B22*Componentes!$J$12+C22*Componentes!$J$13 -> 0 | E22: =IF(Tecno!E22<>"",Tecno!E22,"") ->  | F22: =Tecno!F22 -> 0 | H22: =IF(Tecno!H22<>"",Tecno!H22,"") -> 
A23: Replantio | B23: =Tecno!B23 -> 0 | C23: =Tecno!C23 -> 0 | D23: =B23*Componentes!$J$12+C23*Componentes!$J$13 -> 0 | E23: =IF(Tecno!E23<>"",Tecno!E23,"") ->  | F23: =Tecno!F23 -> 0 | H23: =IF(Tecno!H23<>"",Tecno!H23,"") ->  | I23: =Componentes!J39*C23 -> 0 | J23: =D23+G23+I23 -> 0
A24: Adubação cobertura | B24: =Tecno!B24 -> 0 | C24: =Tecno!C24 -> 0 | D24: =B24*Componentes!$J$12+C24*Componentes!$J$13 -> 0 | E24: =IF(Tecno!E24<>"",Tecno!E24,"") ->  | F24: =Tecno!F24 -> 0 | G24: =F24*Componentes!E54/1000 -> 0 | H24: =IF(Tecno!H24<>"",Tecno!H24,"") ->  | I24: =Componentes!J37*C24 -> 0 | J24: =D24+G24+I24 -> 0
A25: Primeira Manutenção | J25: =SUM(J10:J24)+Componentes!$H$4 -> 2290.618722
A27: Conservação do Solo | B27: =Tecno!B27 -> 0 | C27: =Tecno!C27 -> 0 | D27: =B27*Componentes!$J$12+C27*Componentes!$J$13 -> 0 | E27: =IF(Tecno!E27<>"",Tecno!E27,"") ->  | F27: =Tecno!F27 -> 0 | H27: =IF(Tecno!H27<>"",Tecno!H27,"") ->  | I27: =Componentes!$J$29*C27 -> 0 | J27: =D27+G27+I27 -> 0
A28: Controle Químico Linha | B28: =Tecno!B28 -> 6 | C28: =Tecno!C28 -> 0 | D28: =B28*Componentes!$J$12+C28*Componentes!$J$13 -> 85.5 | E28: =IF(Tecno!E28<>"",Tecno!E28,"") -> Round up | F28: =Tecno!F28 -> 0.94 | G28: =F28*Componentes!$E$56 -> 63.779 | H28: =IF(Tecno!H28<>"",Tecno!H28,"") -> Pulverizador costal motorizado | I28: =Componentes!J23*B28 -> 21.3675 | J28: 170.6465
A29: Controle Químico Entrelinha | B29: =Tecno!B29 -> 0 | C29: =Tecno!C29 -> 0 | D29: =B29*Componentes!$J$12+C29*Componentes!$J$13 -> 0 | E29: =IF(Tecno!E29<>"",Tecno!E29,"") ->  | F29: =Tecno!F29 -> 0 | G29: =F29*Componentes!$E$56 -> 0 | H29: =IF(Tecno!H29<>"",Tecno!H29,"") ->  | I29: =Componentes!$J$31*C29 -> 0 | J29: 0
A30: Controle de formigas | B30: =Tecno!B30 -> 1.8 | C30: =Tecno!C30 -> 0 | D30: =B30*Componentes!$J$12+C30*Componentes!$J$13 -> 25.65 | E30: =IF(Tecno!E30<>"",Tecno!E30,"") -> Formicida granulado | F30: =Tecno!F30 -> 0.7 | G30: =F30*Componentes!$E$55 -> 30.87 | H30: =IF(Tecno!H30<>"",Tecno!H30,"") -> Caminhão + Carreta 4 ton. | J30: 56.52
A31: Adubação de reforço manual | B31: =Tecno!B31 -> 11.63 | C31: =Tecno!C31 -> 0.94 | D31: =B31*Componentes!$J$12+C31*Componentes!$J$13 -> 174.8708447 | E31: =IF(Tecno!E31<>"",Tecno!E31,"") -> NPK-6:30:6 | F31: =Tecno!F31 -> 200 | G31: =F31*Componentes!$E$52/1000 -> 200 | H31: =IF(Tecno!H31<>"",Tecno!H31,"") ->  | J31: 374.8708447
A32: Manutenção de Aceiros | B32: =Tecno!B32 -> 0 | C32: =Tecno!C32 -> 0 | D32: =B32*Componentes!$J$12+C32*Componentes!$J$13 -> 0 | E32: =IF(Tecno!E32<>"",Tecno!E32,"") ->  | F32: =Tecno!F32 -> 0 | H32: =IF(Tecno!H32<>"",Tecno!H32,"") ->  | I32: =Componentes!$J$29*C32 -> 0 | J32: 0
A33: Segunda Manutenção | J33: =SUM(J27:J32)+Componentes!$H$4 -> 802.0373447
A35: Controle Químico Entrelinha | B35: =Tecno!B35 -> 0 | C35: =Tecno!C35 -> 0 | D35: =B35*Componentes!$J$12+C35*Componentes!$J$13 -> 0 | E35: =IF(Tecno!E35<>"",Tecno!E35,"") ->  | F35: =Tecno!F35 -> 0 | G35: =F35*Componentes!$E$56 -> 0 | H35: =IF(Tecno!H35<>"",Tecno!H35,"") ->  | I35: =Componentes!$J$31*C35 -> 0 | J35: =D35+G35+I35 -> 0
A36: Fosfatagem | B36: =Tecno!B36 -> 0 | C36: =Tecno!C36 -> 0 | D36: =B36*Componentes!$J$12+C36*Componentes!$J$13 -> 0 | E36: =IF(Tecno!E36<>"",Tecno!E36,"") ->  | F36: =Tecno!F36 -> 0 | G36: =F36*Componentes!$E$50/1000 -> 0 | H36: =IF(Tecno!H36<>"",Tecno!H36,"") ->  | I36: =Componentes!$J$37*C36 -> 0 | J36: =D36+G36+I36 -> 0
A37: Roçada Manual Linha | B37: =Tecno!B37 -> 8 | C37: =Tecno!C37 -> 0 | D37: =B37*Componentes!$J$12+C37*Componentes!$J$13 -> 114 | E37: =IF(Tecno!E37<>"",Tecno!E37,"") ->  | F37: =Tecno!F37 -> 0 | H37: =IF(Tecno!H37<>"",Tecno!H37,"") ->  | J37: =D37+G37+I37 -> 114
A38: Patrolamento Aceiro | B38: =Tecno!B38 -> 0 | C38: =Tecno!C38 -> 0 | D38: =B38*Componentes!$J$12+C38*Componentes!$J$13 -> 0 | E38: =IF(Tecno!E38<>"",Tecno!E38,"") ->  | F38: =Tecno!F38 -> 0 | H38: =IF(Tecno!H38<>"",Tecno!H38,"") ->  | I38: =Componentes!$J$28*C38 -> 0 | J38: =D38+G38+I38 -> 0
A39: Terceira Manutenção | J39: =SUM(J35:J38)+Componentes!$H$4 -> 314
A41: Controle Químico Entrelinha | B41: =Tecno!B41 -> 0 | C41: =Tecno!C41 -> 0 | D41: =B41*Componentes!$J$12+C41*Componentes!$J$13 -> 0 | E41: =IF(Tecno!E41<>"",Tecno!E41,"") ->  | F41: =Tecno!F41 -> 0 | G41: =F41*Componentes!$E$56 -> 0 | H41: =IF(Tecno!H41<>"",Tecno!H41,"") ->  | I41: =Componentes!$J$31*C41 -> 0 | J41: =D41+G41+I41 -> 0
A42: Adubação de Manutenção | B42: =Tecno!B42 -> 0 | C42: =Tecno!C42 -> 0 | D42: =B42*Componentes!$J$12+C42*Componentes!$J$13 -> 0 | E42: =IF(Tecno!E42<>"",Tecno!E42,"") ->  | F42: =Tecno!F42 -> 0 | G42: =F42*Componentes!$E$53/1000 -> 0 | H42: =IF(Tecno!H42<>"",Tecno!H42,"") ->  | I42: =Componentes!$J$31*C42 -> 0 | J42: =D42+G42+I42 -> 0
A43: Controle formiga manutenção | B43: =Tecno!B43 -> 1.4 | C43: =Tecno!C43 -> 0 | D43: =B43*Componentes!$J$12+C43*Componentes!$J$13 -> 19.95 | E43: =IF(Tecno!E43<>"",Tecno!E43,"") -> Formicida granulado | F43: =Tecno!F43 -> 0.6 | G43: =F43*Componentes!$E$55 -> 26.46 | H43: =IF(Tecno!H43<>"",Tecno!H43,"") ->  | J43: =D43+G43+I43 -> 46.41
A44: Patrolamento Aceiro | B44: =Tecno!B44 -> 0 | C44: =Tecno!C44 -> 0 | D44: =B44*Componentes!$J$12+C44*Componentes!$J$13 -> 0 | E44: =IF(Tecno!E44<>"",Tecno!E44,"") ->  | F44: =Tecno!F44 -> 0 | H44: =IF(Tecno!H44<>"",Tecno!H44,"") ->  | I44: =Componentes!$J$28*C44 -> 0 | J44: =D44+G44+I44 -> 0
A45: Demais Manutenções | J45: =SUM(J41:J44)+Componentes!$H$4 -> 246.41
A47: Controle formiga manutenção | B47: =Tecno!B47 -> 1.4 | C47: =Tecno!C47 -> 0 | D47: =B47*Componentes!$J$12+C47*Componentes!$J$13 -> 19.95 | E47: =IF(Tecno!E47<>"",Tecno!E47,"") -> Formicida granulado | F47: =Tecno!F47 -> 0.6 | G47: =F47*Componentes!$E$55 -> 26.46 | H47: =IF(Tecno!H47<>"",Tecno!H47,"") ->  | J47: =D47+G47+I47 -> 46.41
A48: Patrolamento Aceiro | B48: =Tecno!B48 -> 0 | C48: =Tecno!C48 -> 0 | D48: =B48*Componentes!$J$12+C48*Componentes!$J$13 -> 0 | E48: =IF(Tecno!E48<>"",Tecno!E48,"") ->  | F48: =Tecno!F48 -> 0 | H48: =IF(Tecno!H48<>"",Tecno!H48,"") ->  | I48: =Componentes!$J$28*C48 -> 0 | J48: =D48+G48+I48 -> 0
J49: =SUM(J47:J48)+Componentes!$H$4 -> 246.41

Sheet EucPol2Rot
A1: Detalhamento dos Custos das Operações - Eucalipto p/ Polpa - Ciclos c/ 2 Rotações
A2: (Rendimento técnico da MDO em homem-hora/hectare)
A3: (Para MDO, considerou-se apenas MDO tipo braçal e tratorista)
A4: (Rendimento técnico do equipamento em hora-máquina/hectare)
A5: (Custo total da operação em $/hectare)
A7: PRIMEIRA ROTAÇÃO | D7: Volume aos 7 anos (m3): | E7: 253.6974686
A8: Plantio | B8: Mão-de-Obra | E8: Insumo | H8: Máquinas
B9: Braçal | C9: Tratorista | D9: Custo | E9: Produto | F9: Quantidade | G9: Custo | H9: Equipamento | I9: Custo | J9: Custo Total
A10: Conservação do Solo | B10: =Tecno!B10 -> 0 | C10: =Tecno!C10 -> 0 | D10: =B10*Componentes!$J$12+C10*Componentes!$J$13 -> 0 | E10: =IF(Tecno!E10<>"",Tecno!E10,"") ->  | F10: =Tecno!F10 -> 0 | H10: =IF(Tecno!H10<>"",Tecno!H10,"") ->  | I10: =Componentes!J29*C10 -> 0 | J10: =D10+G10+I10 -> 0
A11: Construção de Aceiros | B11: =Tecno!B11 -> 0 | C11: =Tecno!C11 -> 0 | D11: =B11*Componentes!$J$12+C11*Componentes!$J$13 -> 0 | E11: =IF(Tecno!E11<>"",Tecno!E11,"") ->  | F11: =Tecno!F11 -> 0 | H11: =IF(Tecno!H11<>"",Tecno!H11,"") ->  | I11: =Componentes!J29*C11 -> 0 | J11: =D11+G11+I11 -> 0
A12: Calagem | B12: =Tecno!B12 -> 1.2 | C12: =Tecno!C12 -> 1.2 | D12: =B12*Componentes!$J$12+C12*Componentes!$J$13 -> 28.77235495 | E12: =IF(Tecno!E12<>"",Tecno!E12,"") -> Calcário dolomítico | F12: =Tecno!F12 -> 4 | G12: =F12*Componentes!E47 -> 340 | H12: =IF(Tecno!H12<>"",Tecno!H12,"") -> MF 290 + Aplicador calcário | I12: =Componentes!J36*C12 -> 83.25 | J12: =D12+G12+I12 -> 452.0223549
A13: Combate a formiga 1 | B13: =Tecno!B13 -> 2.32 | C13: =Tecno!C13 -> 0 | D13: =B13*Componentes!$J$12+C13*Componentes!$J$13 -> 33.06 | E13: =IF(Tecno!E13<>"",Tecno!E13,"") -> Formicida granulado | F13: =Tecno!F13 -> 1.5 | G13: =F13*Componentes!$E$55 -> 66.15 | H13: =IF(Tecno!H13<>"",Tecno!H13,"") ->  | J13: 99.21
A14: Combate a formiga 2 | B14: =Tecno!B14 -> 0 | C14: =Tecno!C14 -> 0 | D14: =B14*Componentes!$J$12+C14*Componentes!$J$13 -> 0 | E14: =IF(Tecno!E14<>"",Tecno!E14,"") ->  | F14: =Tecno!F14 -> 0 | G14: =F14*Componentes!$E$55 -> 0 | H14: =IF(Tecno!H14<>"",Tecno!H14,"") ->  | J14: 0
A15: Combate a formiga 3 | B15: =Tecno!B15 -> 0 | C15: =Tecno!C15 -> 0 | D15: =B15*Componentes!$J$12+C15*Componentes!$J$13 -> 0 | E15: =IF(Tecno!E15<>"",Tecno!E15,"") ->  | F15: =Tecno!F15 -> 0 | G15: =F15*Componentes!$E$55 -> 0 | H15: =IF(Tecno!H15<>"",Tecno!H15,"") ->  | J15: 0
A16: Controle Químico Mec. Total | B16: =Tecno!B16 -> 0 | C16: =Tecno!C16 -> 0 | D16: =B16*Componentes!$J$12+C16*Componentes!$J$13 -> 0 | E16: =IF(Tecno!E16<>"",Tecno!E16,"") ->  | F16: =Tecno!F16 -> 0 | G16: =F16*Componentes!$E$56 -> 0 | H16: =IF(Tecno!H16<>"",Tecno!H16,"") ->  | I16: =Componentes!$J$31*C16 -> 0 | J16: 0
A17: Subsolagem | B17: =Tecno!B17 -> 0 | C17: =Tecno!C17 -> 0 | D17: =B17*Componentes!$J$12+C17*Componentes!$J$13 -> 0 | E17: =IF(Tecno!E17<>"",Tecno!E17,"") ->  | F17: =Tecno!F17 -> 0 | H17: =IF(Tecno!H17<>"",Tecno!H17,"") ->  | I17: =Componentes!J40*C17 -> 0 | J17: 0
A18: Coveamento | B18: =Tecno!B18 -> 16 | C18: =Tecno!C18 -> 0 | D18: =B18*Componentes!$J$12+C18*Componentes!$J$13 -> 228 | E18: =IF(Tecno!E18<>"",Tecno!E18,"") ->  | F18: =Tecno!F18 -> 0 | H18: =IF(Tecno!H18<>"",Tecno!H18,"") ->  | J18: 228
A19: Adubação | B19: =Tecno!B19 -> 1.2 | C19: =Tecno!C19 -> 1.2 | D19: =B19*Componentes!$J$12+C19*Componentes!$J$13 -> 28.77235495 | E19: =IF(Tecno!E19<>"",Tecno!E19,"") -> NPK-6:30:6 | F19: =Tecno!F19 -> 200 | G19: =F19*Componentes!$E$52/1000 -> 200 | H19: =IF(Tecno!H19<>"",Tecno!H19,"") -> MF 290 + Aplicador Adubo Granulado | I19: =Componentes!J37*C19 -> 86.025 | J19: 314.7973549
A20: Plantio | B20: =Tecno!B20 -> 12 | C20: =Tecno!C20 -> 3 | D20: =B20*Componentes!$J$12+C20*Componentes!$J$13 -> 200.1808874 | E20: =IF(Tecno!E20<>"",Tecno!E20,"") -> Mudas | F20: =Tecno!F20 -> 1667 | G20: =F20*Componentes!E46/1000 -> 583.45 | H20: =IF(Tecno!H20<>"",Tecno!H20,"") -> Valmet 880 + carreta | I20: =Componentes!J39*C20 -> 155.4 | J20: =D20+G20+I20 -> 939.0308874
A21: Irrigação | B21: =Tecno!B21 -> 0 | C21: =Tecno!C21 -> 0 | D21: =B21*Componentes!$J$12+C21*Componentes!$J$13 -> 0 | E21: =IF(Tecno!E21<>"",Tecno!E21,"") ->  | F21: =Tecno!F21 -> 0 | H21: =IF(Tecno!H21<>"",Tecno!H21,"") ->  | I21: =1.31*Componentes!J31 -> 57.558125 | J21: =D21+G21+I21 -> 57.558125
A22: Levantamento Sobrevivência | B22: =Tecno!B22 -> 0 | C22: =Tecno!C22 -> 0 | D22: =B22*Componentes!$J$12+C22*Componentes!$J$13 -> 0 | E22: =IF(Tecno!E22<>"",Tecno!E22,"") ->  | F22: =Tecno!F22 -> 0 | H22: =IF(Tecno!H22<>"",Tecno!H22,"") -> 
A23: Replantio | B23: =Tecno!B23 -> 0 | C23: =Tecno!C23 -> 0 | D23: =B23*Componentes!$J$12+C23*Componentes!$J$13 -> 0 | E23: =IF(Tecno!E23<>"",Tecno!E23,"") ->  | F23: =Tecno!F23 -> 0 | H23: =IF(Tecno!H23<>"",Tecno!H23,"") ->  | I23: =Componentes!J39*C23 -> 0 | J23: =D23+G23+I23 -> 0
A24: Adubação cobertura | B24: =Tecno!B24 -> 0 | C24: =Tecno!C24 -> 0 | D24: =B24*Componentes!$J$12+C24*Componentes!$J$13 -> 0 | E24: =IF(Tecno!E24<>"",Tecno!E24,"") ->  | F24: =Tecno!F24 -> 0 | G24: =F24*Componentes!E54/1000 -> 0 | H24: =IF(Tecno!H24<>"",Tecno!H24,"") ->  | I24: =Componentes!J37*C24 -> 0 | J24: =D24+G24+I24 -> 0
A25: Primeira Manutenção | J25: =SUM(J10:J24)+Componentes!$H$4 -> 2290.618722
A27: Conservação do Solo | B27: =Tecno!B27 -> 0 | C27: =Tecno!C27 -> 0 | D27: =B27*Componentes!$J$12+C27*Componentes!$J$13 -> 0 | E27: =IF(Tecno!E27<>"",Tecno!E27,"") ->  | F27: =Tecno!F27 -> 0 | H27: =IF(Tecno!H27<>"",Tecno!H27,"") ->  | I27: =Componentes!$J$29*C27 -> 0 | J27: =D27+G27+I27 -> 0
A28: Controle Químico Linha | B28: =Tecno!B28 -> 6 | C28: =Tecno!C28 -> 0 | D28: =B28*Componentes!$J$12+C28*Componentes!$J$13 -> 85.5 | E28: =IF(Tecno!E28<>"",Tecno!E28,"") -> Round up | F28: =Tecno!F28 -> 0.94 | G28: =F28*Componentes!$E$56 -> 63.779 | H28: =IF(Tecno!H28<>"",Tecno!H28,"") -> Pulverizador costal motorizado | I28: =Componentes!J23*B28 -> 21.3675 | J28: 170.6465
A29: Controle Químico Entrelinha | B29: =Tecno!B29 -> 0 | C29: =Tecno!C29 -> 0 | D29: =B29*Componentes!$J$12+C29*Componentes!$J$13 -> 0 | E29: =IF(Tecno!E29<>"",Tecno!E29,"") ->  | F29: =Tecno!F29 -> 0 | G29: =F29*Componentes!$E$56 -> 0 | H29: =IF(Tecno!H29<>"",Tecno!H29,"") ->  | I29: =Componentes!$J$31*C29 -> 0 | J29: 0
A30: Controle de formigas | B30: =Tecno!B30 -> 1.8 | C30: =Tecno!C30 -> 0 | D30: =B30*Componentes!$J$12+C30*Componentes!$J$13 -> 25.65 | E30: =IF(Tecno!E30<>"",Tecno!E30,"") -> Formicida granulado | F30: =Tecno!F30 -> 0.7 | G30: =F30*Componentes!$E$55 -> 30.87 | H30: =IF(Tecno!H30<>"",Tecno!H30,"") -> Caminhão + Carreta 4 ton. | J30: 56.52
A31: Adubação de reforço manual | B31: =Tecno!B31 -> 11.63 | C31: =Tecno!C31 -> 0.94 | D31: =B31*Componentes!$J$12+C31*Componentes!$J$13 -> 174.8708447 | E31: =IF(Tecno!E31<>"",Tecno!E31,"") -> NPK-6:30:6 | F31: =Tecno!F31 -> 200 | G31: =F31*Componentes!$E$52/1000 -> 200 | H31: =IF(Tecno!H31<>"",Tecno!H31,"") ->  | J31: 374.8708447
A32: Manutenção de Aceiros | B32: =Tecno!B32 -> 0 | C32: =Tecno!C32 -> 0 | D32: =B32*Componentes!$J$12+C32*Componentes!$J$13 -> 0 | E32: =IF(Tecno!E32<>"",Tecno!E32,"") ->  | F32: =Tecno!F32 -> 0 | H32: =IF(Tecno!H32<>"",Tecno!H32,"") ->  | I32: =Componentes!$J$29*C32 -> 0 | J32: 0
A33: Segunda Manutenção | J33: =SUM(J27:J32)+Componentes!$H$4 -> 802.0373447
A35: Controle Químico Entrelinha | B35: =Tecno!B35 -> 0 | C35: =Tecno!C35 -> 0 | D35: =B35*Componentes!$J$12+C35*Componentes!$J$13 -> 0 | E35: =IF(Tecno!E35<>"",Tecno!E35,"") ->  | F35: =Tecno!F35 -> 0 | G35: =F35*Componentes!$E$56 -> 0 | H35: =IF(Tecno!H35<>"",Tecno!H35,"") ->  | I35: =Componentes!$J$31*C35 -> 0 | J35: =D35+G35+I35 -> 0
A36: Fosfatagem | B36: =Tecno!B36 -> 0 | C36: =Tecno!C36 -> 0 | D36: =B36*Componentes!$J$12+C36*Componentes!$J$13 -> 0 | E36: =IF(Tecno!E36<>"",Tecno!E36,"") ->  | F36: =Tecno!F36 -> 0 | G36: =F36*Componentes!$E$50/1000 -> 0 | H36: =IF(Tecno!H36<>"",Tecno!H36,"") ->  | I36: =Componentes!$J$37*C36 -> 0 | J36: =D36+G36+I36 -> 0
A37: Roçada Manual Linha | B37: =Tecno!B37 -> 8 | C37: =Tecno!C37 -> 0 | D37: =B37*Componentes!$J$12+C37*Componentes!$J$13 -> 114 | E37: =IF(Tecno!E37<>"",Tecno!E37,"") ->  | F37: =Tecno!F37 -> 0 | H37: =IF(Tecno!H37<>"",Tecno!H37,"") ->  | J37: =D37+G37+I37 -> 114
A38: Patrolamento Aceiro | B38: =Tecno!B38 -> 0 | C38: =Tecno!C38 -> 0 | D38: =B38*Componentes!$J$12+C38*Componentes!$J$13 -> 0 | E38: =IF(Tecno!E38<>"",Tecno!E38,"") ->  | F38: =Tecno!F38 -> 0 | H38: =IF(Tecno!H38<>"",Tecno!H38,"") ->  | I38: =Componentes!$J$28*C38 -> 0 | J38: =D38+G38+I38 -> 0
A39: Terceira Manutenção | J39: =SUM(J35:J38)+Componentes!$H$4 -> 314
A41: Controle Químico Entrelinha | B41: =Tecno!B41 -> 0 | C41: =Tecno!C41 -> 0 | D41: =B41*Componentes!$J$12+C41*Componentes!$J$13 -> 0 | E41: =IF(Tecno!E41<>"",Tecno!E41,"") ->  | F41: =Tecno!F41 -> 0 | G41: =F41*Componentes!$E$56 -> 0 | H41: =IF(Tecno!H41<>"",Tecno!H41,"") ->  | I41: =Componentes!$J$31*C41 -> 0 | J41: =D41+G41+I41 -> 0
A42: Adubação de Manutenção | B42: =Tecno!B42 -> 0 | C42: =Tecno!C42 -> 0 | D42: =B42*Componentes!$J$12+C42*Componentes!$J$13 -> 0 | E42: =IF(Tecno!E42<>"",Tecno!E42,"") ->  | F42: =Tecno!F42 -> 0 | G42: =F42*Componentes!$E$53/1000 -> 0 | H42: =IF(Tecno!H42<>"",Tecno!H42,"") ->  | I42: =Componentes!$J$31*C42 -> 0 | J42: =D42+G42+I42 -> 0
A43: Controle formiga manutenção | B43: =Tecno!B43 -> 1.4 | C43: =Tecno!C43 -> 0 | D43: =B43*Componentes!$J$12+C43*Componentes!$J$13 -> 19.95 | E43: =IF(Tecno!E43<>"",Tecno!E43,"") -> Formicida granulado | F43: =Tecno!F43 -> 0.6 | G43: =F43*Componentes!$E$55 -> 26.46 | H43: =IF(Tecno!H43<>"",Tecno!H43,"") ->  | J43: =D43+G43+I43 -> 46.41
A44: Patrolamento Aceiro | B44: =Tecno!B44 -> 0 | C44: =Tecno!C44 -> 0 | D44: =B44*Componentes!$J$12+C44*Componentes!$J$13 -> 0 | E44: =IF(Tecno!E44<>"",Tecno!E44,"") ->  | F44: =Tecno!F44 -> 0 | H44: =IF(Tecno!H44<>"",Tecno!H44,"") ->  | I44: =Componentes!$J$28*C44 -> 0 | J44: =D44+G44+I44 -> 0
A45: Demais Manutenções | J45: =SUM(J41:J44)+Componentes!$H$4 -> 246.41
A47: Controle formiga manutenção | B47: =Tecno!B47 -> 1.4 | C47: =Tecno!C47 -> 0 | D47: =B47*Componentes!$J$12+C47*Componentes!$J$13 -> 19.95 | E47: =IF(Tecno!E47<>"",Tecno!E47,"") -> Formicida granulado | F47: =Tecno!F47 -> 0.6 | G47: =F47*Componentes!$E$55 -> 26.46 | H47: =IF(Tecno!H47<>"",Tecno!H47,"") ->  | J47: =D47+G47+I47 -> 46.41
A48: Patrolamento Aceiro | B48: =Tecno!B48 -> 0 | C48: =Tecno!C48 -> 0 | D48: =B48*Componentes!$J$12+C48*Componentes!$J$13 -> 0 | E48: =IF(Tecno!E48<>"",Tecno!E48,"") ->  | F48: =Tecno!F48 -> 0 | H48: =IF(Tecno!H48<>"",Tecno!H48,"") ->  | I48: =Componentes!$J$28*C48 -> 0 | J48: =D48+G48+I48 -> 0
J49: =SUM(J47:J48)+Componentes!$H$4 -> 246.41
A50: SEGUNDA ROTAÇÃO | D50: Volume aos 7 anos (m3): | E50: 236.7221276
A51: Primeira Manutenção | B51: Mão-de-Obra | E51: Insumo | H51: Máquinas
B52: Braçal | C52: Tratorista | D52: Custo | E52: Produto | F52: Quantidade | G52: Custo | H52: Equipamento | I52: Custo | J52: Custo Total
A53: Controle Químico Linha | B53: =Tecno!B53 -> 6 | C53: =Tecno!C53 -> 0 | D53: =B53*Componentes!$J$12+C53*Componentes!$J$13 -> 85.5 | E53: =IF(Tecno!E53<>"",Tecno!E53,"") -> Round up | F53: =Tecno!F53 -> 0.94 | G53: =F53*Componentes!$E$56 -> 63.779 | H53: =IF(Tecno!H53<>"",Tecno!H53,"") ->  | J53: =D53+G53+I53 -> 149.279
A54: Controle Químico Entrelinha | B54: =Tecno!B54 -> 0 | C54: =Tecno!C54 -> 0 | D54: =B54*Componentes!$J$12+C54*Componentes!$J$13 -> 0 | E54: =IF(Tecno!E54<>"",Tecno!E54,"") ->  | F54: =Tecno!F54 -> 0 | G54: =F54*Componentes!$E$56 -> 0 | H54: =IF(Tecno!H54<>"",Tecno!H54,"") ->  | I54: =Componentes!$J$31*C54 -> 0 | J54: =D54+G54+I54 -> 0
A55: Controle de formigas | B55: =Tecno!B55 -> 1.8 | C55: =Tecno!C55 -> 0 | D55: =B55*Componentes!$J$12+C55*Componentes!$J$13 -> 25.65 | E55: =IF(Tecno!E55<>"",Tecno!E55,"") -> Formicida granulado | F55: =Tecno!F55 -> 0.7 | G55: =F55*Componentes!$E$55 -> 30.87 | H55: =IF(Tecno!H55<>"",Tecno!H55,"") ->  | J55: =D55+G55+I55 -> 56.52
A56: Adubação de Manutenção | B56: =Tecno!B56 -> 0.1 | C56: =Tecno!C56 -> 0.42 | D56: =B56*Componentes!$J$12+C56*Componentes!$J$13 -> 5.510324232 | E56: =IF(Tecno!E56<>"",Tecno!E56,"") -> NPK-8:5:18 líquido | F56: =Tecno!F56 -> 200 | G56: =F56*Componentes!$E$53/1000 -> 200 | H56: =IF(Tecno!H56<>"",Tecno!H56,"") -> Trator Médio + Tanque pulverizador com 2 mangueiras | I56: =Componentes!$J$31*C56 -> 18.45375 | J56: =D56+G56+I56 -> 223.9640742
A57: Patrolamento Aceiro | B57: =Tecno!B57 -> 0 | C57: =Tecno!C57 -> 0 | D57: =B57*Componentes!$J$12+C57*Componentes!$J$13 -> 0 | E57: =IF(Tecno!E57<>"",Tecno!E57,"") ->  | F57: =Tecno!F57 -> 0 | H57: =IF(Tecno!H57<>"",Tecno!H57,"") ->  | I57: =Componentes!$J$28*C57 -> 0 | J57: =D57+G57+I57 -> 0
A58: Segunda Manutenção | J58: =SUM(J53:J57)+Componentes!$H$4 -> 629.7630742
A60: Controle Químico Entrelinha | B60: =Tecno!B60 -> 0 | C60: =Tecno!C60 -> 0 | D60: =B60*Componentes!$J$12+C60*Componentes!$J$13 -> 0 | E60: =IF(Tecno!E60<>"",Tecno!E60,"") ->  | F60: =Tecno!F60 -> 0 | G60: =F60*Componentes!$E$56 -> 0 | H60: =IF(Tecno!H60<>"",Tecno!H60,"") ->  | I60: =Componentes!$J$31*C60 -> 0 | J60: =D60+G60+I60 -> 0
A61: Fosfatagem | B61: =Tecno!B61 -> 0.66 | C61: =Tecno!C61 -> 1.02 | D61: =B61*Componentes!$J$12+C61*Componentes!$J$13 -> 19.32650171 | E61: =IF(Tecno!E61<>"",Tecno!E61,"") -> Superfosfato Simples | F61: =Tecno!F61 -> 300 | G61: =Componentes!$E$50/1000*F61 -> 247.17 | H61: =IF(Tecno!H61<>"",Tecno!H61,"") -> MF 290 + Aplicador Adubo Granulado | I61: =Componentes!$J$37*C61 -> 73.12125 | J61: =D61+G61+I61 -> 339.6177517
A62: Desbrota | B62: =Tecno!B62 -> 12 | C62: =Tecno!C62 -> 0 | D62: =B62*Componentes!$J$12+C62*Componentes!$J$13 -> 171 | E62: =IF(Tecno!E62<>"",Tecno!E62,"") ->  | F62: =Tecno!F62 -> 0 | H62: =IF(Tecno!H62<>"",Tecno!H62,"") -> Motoroçadeira | I62: =Componentes!J23*B62 -> 42.735 | J62: =D62+G62+I62 -> 213.735
A63: Roçada Manual Linha | B63: =Tecno!B63 -> 4 | C63: =Tecno!C63 -> 0 | D63: =B63*Componentes!$J$12+C63*Componentes!$J$13 -> 57 | E63: =IF(Tecno!E63<>"",Tecno!E63,"") ->  | F63: =Tecno!F63 -> 0 | H63: =IF(Tecno!H63<>"",Tecno!H63,"") ->  | J63: =D63+G63+I63 -> 57
A64: Patrolamento Aceiro | B64: =Tecno!B64 -> 0 | C64: =Tecno!C64 -> 0 | D64: =B64*Componentes!$J$12+C64*Componentes!$J$13 -> 0 | E64: =IF(Tecno!E64<>"",Tecno!E64,"") ->  | F64: =Tecno!F64 -> 0 | H64: =IF(Tecno!H64<>"",Tecno!H64,"") ->  | I64: =Componentes!$J$28*C64 -> 0 | J64: =D64+G64+I64 -> 0
A65: Terceira Manutenção | J65: =SUM(J60:J64)+Componentes!$H$4 -> 810.3527517
A67: Controle Químico Entrelinha | B67: =Tecno!B67 -> 0 | C67: =Tecno!C67 -> 0 | D67: =B67*Componentes!$J$12+C67*Componentes!$J$13 -> 0 | E67: =IF(Tecno!E67<>"",Tecno!E67,"") ->  | F67: =Tecno!F67 -> 0 | G67: =F67*Componentes!$E$56 -> 0 | H67: =IF(Tecno!H67<>"",Tecno!H67,"") ->  | I67: =Componentes!$J$31*C67 -> 0 | J67: =D67+G67+I67 -> 0
A68: Adubação de Manutenção | B68: =Tecno!B68 -> 0 | C68: =Tecno!C68 -> 0 | D68: =B68*Componentes!$J$12+C68*Componentes!$J$13 -> 0 | E68: =IF(Tecno!E68<>"",Tecno!E68,"") ->  | F68: =Tecno!F68 -> 0 | H68: =IF(Tecno!H68<>"",Tecno!H68,"") ->  | I68: =Componentes!$J$31*C68 -> 0 | J68: =D68+G68+I68 -> 0
A69: Controle formiga manutenção | B69: =Tecno!B69 -> 1.4 | C69: =Tecno!C69 -> 0 | D69: =B69*Componentes!$J$12+C69*Componentes!$J$13 -> 19.95 | E69: =IF(Tecno!E69<>"",Tecno!E69,"") -> Formicida granulado | F69: =Tecno!F69 -> 0.6 | G69: =F69*Componentes!$E$55 -> 26.46 | H69: =IF(Tecno!H69<>"",Tecno!H69,"") ->  | J69: =D69+G69+I69 -> 46.41
A70: Patrolamento Aceiro | B70: =Tecno!B70 -> 0 | C70: =Tecno!C70 -> 0 | D70: =B70*Componentes!$J$12+C70*Componentes!$J$13 -> 0 | E70: =IF(Tecno!E70<>"",Tecno!E70,"") ->  | F70: =Tecno!F70 -> 0 | H70: =IF(Tecno!H70<>"",Tecno!H70,"") ->  | I70: =Componentes!$J$28*C70 -> 0 | J70: =D70+G70+I70 -> 0
A71: Demais Manutenções | J71: =SUM(J67:J70)+Componentes!$H$4 -> 246.41
A73: Controle formiga manutenção | B73: =Tecno!B73 -> 1.4 | C73: =Tecno!C73 -> 0 | D73: =B73*Componentes!$J$12+C73*Componentes!$J$13 -> 19.95 | E73: =IF(Tecno!E73<>"",Tecno!E73,"") -> Formicida granulado | F73: =Tecno!F73 -> 0.6 | G73: =F73*Componentes!$E$55 -> 26.46 | H73: =IF(Tecno!H73<>"",Tecno!H73,"") ->  | J73: =D73+G73+I73 -> 46.41
A74: Patrolamento Aceiro | B74: =Tecno!B74 -> 0 | C74: =Tecno!C74 -> 0 | D74: =B74*Componentes!$J$12+C74*Componentes!$J$13 -> 0 | E74: =IF(Tecno!E74<>"",Tecno!E74,"") ->  | F74: =Tecno!F74 -> 0 | H74: =IF(Tecno!H74<>"",Tecno!H74,"") ->  | I74: =Componentes!$J$28*C74 -> 0 | J74: =D74+G74+I74 -> 0
J75: =SUM(J73:J74)+Componentes!$H$4 -> 246.41

Sheet EucEne1Rot
A1: Detalhamento dos Custos das Operações - Eucalipto p/ Energia - Ciclos c/ 1 Rotação
A2: (Rendimento técnico da MDO em homem-hora/hectare)
A3: (Para MDO, considerou-se apenas MDO tipo braçal e tratorista)
A4: (Rendimento técnico do equipamento em hora-máquina/hectare)
A5: (Custo total da operação em $/hectare)
A7: PRIMEIRA ROTAÇÃO | D7: Volume aos 7 anos (m3): | E7: 149.7725468
A8: Plantio | B8: Mão-de-Obra | E8: Insumo | H8: Máquinas
B9: Braçal | C9: Tratorista | D9: Custo | E9: Produto | F9: Quantidade | G9: Custo | H9: Equipamento | I9: Custo | J9: Custo Total
A10: Conservação do Solo | B10: =Tecno!B10/2 -> 0 | C10: =Tecno!C10/2 -> 0 | D10: =B10*Componentes!$J$12+C10*Componentes!$J$13 -> 0 | E10: =IF(Tecno!E10<>"",Tecno!E10,"") ->  | F10: =Tecno!F10 -> 0 | H10: =IF(Tecno!H10<>"",Tecno!H10,"") ->  | I10: =Componentes!J29*C10 -> 0 | J10: =D10+G10+I10 -> 0
A11: Construção de Aceiros | B11: =Tecno!B11/2 -> 0 | C11: =Tecno!C11/2 -> 0 | D11: =B11*Componentes!$J$12+C11*Componentes!$J$13 -> 0 | E11: =IF(Tecno!E11<>"",Tecno!E11,"") ->  | F11: =Tecno!F11 -> 0 | H11: =IF(Tecno!H11<>"",Tecno!H11,"") ->  | I11: =Componentes!J29*C11 -> 0 | J11: =D11+G11+I11 -> 0
A12: Calagem | B12: =Tecno!B12 -> 1.2 | C12: =Tecno!C12 -> 1.2 | D12: =B12*Componentes!$J$12+C12*Componentes!$J$13 -> 28.77235495 | E12: =IF(Tecno!E12<>"",Tecno!E12,"") -> Calcário dolomítico | F12: =Tecno!F12 -> 4 | G12: =F12*Componentes!E47 -> 340 | H12: =IF(Tecno!H12<>"",Tecno!H12,"") -> MF 290 + Aplicador calcário | I12: =Componentes!J36*C12 -> 83.25 | J12: =D12+G12+I12 -> 452.0223549
A13: Combate a formiga 1 | B13: =Tecno!B13 -> 2.32 | C13: =Tecno!C13 -> 0 | D13: =B13*Componentes!$J$12+C13*Componentes!$J$13 -> 33.06 | E13: =IF(Tecno!E13<>"",Tecno!E13,"") -> Formicida granulado | F13: =Tecno!F13 -> 1.5 | G13: =F13*Componentes!$E$55 -> 66.15 | H13: =IF(Tecno!H13<>"",Tecno!H13,"") ->  | J13: 99.21
A14: Combate a formiga 2 | D14: =B14*Componentes!$J$12+C14*Componentes!$J$13 -> 0 | G14: =F14*Componentes!$E$55 -> 0 | H14: =IF(Tecno!H14<>"",Tecno!H14,"") ->  | J14: 0
A15: Combate a formiga 3 | D15: =B15*Componentes!$J$12+C15*Componentes!$J$13 -> 0 | G15: =F15*Componentes!$E$55 -> 0 | H15: =IF(Tecno!H15<>"",Tecno!H15,"") ->  | J15: 0
A16: Controle Químico Mec. Total | B16: =Tecno!B16 -> 0 | C16: =Tecno!C16 -> 0 | D16: =B16*Componentes!$J$12+C16*Componentes!$J$13 -> 0 | E16: =IF(Tecno!E16<>"",Tecno!E16,"") ->  | F16: =Tecno!F16 -> 0 | G16: =F16*Componentes!$E$56 -> 0 | H16: =IF(Tecno!H16<>"",Tecno!H16,"") ->  | I16: =Componentes!$J$31*C16 -> 0 | J16: 0
A17: Subsolagem | B17: =Tecno!B17 -> 0 | C17: =Tecno!C17 -> 0 | D17: =B17*Componentes!$J$12+C17*Componentes!$J$13 -> 0 | E17: =IF(Tecno!E17<>"",Tecno!E17,"") ->  | F17: =Tecno!F17 -> 0 | H17: =IF(Tecno!H17<>"",Tecno!H17,"") ->  | I17: =Componentes!J40*C17 -> 0 | J17: 0
A18: Coveamento | B18: =Tecno!B18 -> 16 | C18: =Tecno!C18 -> 0 | D18: =B18*Componentes!$J$12+C18*Componentes!$J$13 -> 228 | E18: =IF(Tecno!E18<>"",Tecno!E18,"") ->  | F18: =Tecno!F18 -> 0 | H18: =IF(Tecno!H18<>"",Tecno!H18,"") ->  | J18: 228
A19: Adubação | B19: =Tecno!B19 -> 1.2 | C19: =Tecno!C19 -> 1.2 | D19: =B19*Componentes!$J$12+C19*Componentes!$J$13 -> 28.77235495 | E19: =IF(Tecno!E19<>"",Tecno!E19,"") -> NPK-6:30:6 | F19: =Tecno!F19 -> 200 | G19: =F19*Componentes!$E$52/1000 -> 200 | H19: =IF(Tecno!H19<>"",Tecno!H19,"") -> MF 290 + Aplicador Adubo Granulado | I19: =Componentes!J37*C19 -> 86.025 | J19: 314.7973549
A20: Plantio | B20: =Tecno!B20 -> 12 | C20: =Tecno!C20 -> 3 | D20: =B20*Componentes!$J$12+C20*Componentes!$J$13 -> 200.1808874 | E20: =IF(Tecno!E20<>"",Tecno!E20,"") -> Mudas | F20: =Tecno!F20 -> 1667 | G20: =F20*Componentes!E46/1000 -> 583.45 | H20: =IF(Tecno!H20<>"",Tecno!H20,"") -> Valmet 880 + carreta | I20: =Componentes!J39*C20 -> 155.4 | J20: =D20+G20+I20 -> 939.0308874
A21: Irrigação | B21: =Tecno!B21 -> 0 | C21: =Tecno!C21 -> 0 | D21: =B21*Componentes!$J$12+C21*Componentes!$J$13 -> 0 | E21: =IF(Tecno!E21<>"",Tecno!E21,"") ->  | F21: =Tecno!F21 -> 0 | H21: =IF(Tecno!H21<>"",Tecno!H21,"") ->  | I21: =1.31*Componentes!J31 -> 57.558125 | J21: =D21+G21+I21 -> 57.558125
A22: Levantamento Sobrevivência | B22: =Tecno!B22 -> 0 | C22: =Tecno!C22 -> 0 | D22: =B22*Componentes!$J$12+C22*Componentes!$J$13 -> 0 | E22: =IF(Tecno!E22<>"",Tecno!E22,"") ->  | F22: =Tecno!F22 -> 0 | H22: =IF(Tecno!H22<>"",Tecno!H22,"") -> 
A23: Replantio | B23: =Tecno!B23 -> 0 | C23: =Tecno!C23 -> 0 | D23: =B23*Componentes!$J$12+C23*Componentes!$J$13 -> 0 | E23: =IF(Tecno!E23<>"",Tecno!E23,"") ->  | F23: =Tecno!F23 -> 0 | H23: =IF(Tecno!H23<>"",Tecno!H23,"") ->  | I23: =Componentes!J39*C23 -> 0 | J23: =D23+G23+I23 -> 0
A24: Adubação cobertura | B24: =Tecno!B24 -> 0 | C24: =Tecno!C24 -> 0 | D24: =B24*Componentes!$J$12+C24*Componentes!$J$13 -> 0 | E24: =IF(Tecno!E24<>"",Tecno!E24,"") ->  | F24: =Tecno!F24 -> 0 | G24: =F24*Componentes!E54/1000 -> 0 | H24: =IF(Tecno!H24<>"",Tecno!H24,"") ->  | I24: =Componentes!J37*C24 -> 0 | J24: =D24+G24+I24 -> 0
A25: Primeira Manutenção | J25: =SUM(J10:J24)+Componentes!$H$4 -> 2290.618722
A27: Conservação do Solo | B27: =Tecno!B27/2 -> 0 | C27: =Tecno!C27/2 -> 0 | D27: =B27*Componentes!$J$12+C27*Componentes!$J$13 -> 0 | E27: =IF(Tecno!E27<>"",Tecno!E27,"") ->  | F27: =Tecno!F27 -> 0 | H27: =IF(Tecno!H27<>"",Tecno!H27,"") ->  | I27: =Componentes!$J$29*C27 -> 0 | J27: =D27+G27+I27 -> 0
A28: Controle Químico Linha | B28: =Tecno!B28 -> 6 | C28: =Tecno!C28 -> 0 | D28: =B28*Componentes!$J$12+C28*Componentes!$J$13 -> 85.5 | E28: =IF(Tecno!E28<>"",Tecno!E28,"") -> Round up | F28: =Tecno!F28 -> 0.94 | G28: =F28*Componentes!$E$56 -> 63.779 | H28: =IF(Tecno!H28<>"",Tecno!H28,"") -> Pulverizador costal motorizado | I28: =Componentes!J23*B28 -> 21.3675 | J28: 170.6465
A29: Controle Químico Entrelinha | D29: =B29*Componentes!$J$12+C29*Componentes!$J$13 -> 0 | G29: =F29*Componentes!$E$56 -> 0 | I29: =Componentes!$J$31*C29 -> 0 | J29: 0
A30: Controle de formigas | B30: =Tecno!B30 -> 1.8 | C30: =Tecno!C30 -> 0 | D30: =B30*Componentes!$J$12+C30*Componentes!$J$13 -> 25.65 | E30: =IF(Tecno!E30<>"",Tecno!E30,"") -> Formicida granulado | F30: =Tecno!F30 -> 0.7 | G30: =F30*Componentes!$E$55 -> 30.87 | H30: =IF(Tecno!H30<>"",Tecno!H30,"") -> Caminhão + Carreta 4 ton. | J30: 56.52
A31: Adubação de reforço manual | B31: =Tecno!B31 -> 11.63 | C31: =Tecno!C31 -> 0.94 | D31: =B31*Componentes!$J$12+C31*Componentes!$J$13 -> 174.8708447 | E31: =IF(Tecno!E31<>"",Tecno!E31,"") -> NPK-6:30:6 | F31: =Tecno!F31 -> 200 | G31: =F31*Componentes!$E$52/1000 -> 200 | H31: =IF(Tecno!H31<>"",Tecno!H31,"") ->  | J31: 374.8708447
A32: Manutenção de Aceiros | B32: =Tecno!B32/2 -> 0 | C32: =Tecno!C32/2 -> 0 | D32: =B32*Componentes!$J$12+C32*Componentes!$J$13 -> 0 | E32: =IF(Tecno!E32<>"",Tecno!E32,"") ->  | F32: =Tecno!F32 -> 0 | H32: =IF(Tecno!H32<>"",Tecno!H32,"") ->  | I32: =Componentes!$J$29*C32 -> 0 | J32: 0
A33: Segunda Manutenção | J33: =SUM(J27:J32)+Componentes!$H$4 -> 802.0373447
A35: Controle Químico Entrelinha | B35: =Tecno!B35 -> 0 | C35: =Tecno!C35 -> 0 | D35: =B35*Componentes!$J$12+C35*Componentes!$J$13 -> 0 | E35: =IF(Tecno!E35<>"",Tecno!E35,"") ->  | F35: =Tecno!F35 -> 0 | G35: =F35*Componentes!$E$56 -> 0 | H35: =IF(Tecno!H35<>"",Tecno!H35,"") ->  | I35: =Componentes!$J$31*C35 -> 0 | J35: =D35+G35+I35 -> 0
A36: Fosfatagem | D36: =B36*Componentes!$J$12+C36*Componentes!$J$13 -> 0 | G36: =F36*Componentes!$E$50/1000 -> 0 | I36: =Componentes!$J$37*C36 -> 0 | J36: =D36+G36+I36 -> 0
A37: Roçada Manual Linha | B37: =Tecno!B37 -> 8 | C37: =Tecno!C37 -> 0 | D37: =B37*Componentes!$J$12+C37*Componentes!$J$13 -> 114 | E37: =IF(Tecno!E37<>"",Tecno!E37,"") ->  | F37: =Tecno!F37 -> 0 | H37: =IF(Tecno!H37<>"",Tecno!H37,"") ->  | J37: =D37+G37+I37 -> 114
A38: Patrolamento Aceiro | B38: =Tecno!B38 -> 0 | C38: =Tecno!C38 -> 0 | D38: =B38*Componentes!$J$12+C38*Componentes!$J$13 -> 0 | E38: =IF(Tecno!E38<>"",Tecno!E38,"") ->  | F38: =Tecno!F38 -> 0 | H38: =IF(Tecno!H38<>"",Tecno!H38,"") ->  | I38: =Componentes!$J$28*C38 -> 0 | J38: =D38+G38+I38 -> 0
A39: Terceira Manutenção | J39: =SUM(J35:J38)+Componentes!$H$4 -> 314
A41: Controle Químico Entrelinha | B41: =Tecno!B41 -> 0 | C41: =Tecno!C41 -> 0 | D41: =B41*Componentes!$J$12+C41*Componentes!$J$13 -> 0 | E41: =IF(Tecno!E41<>"",Tecno!E41,"") ->  | F41: =Tecno!F41 -> 0 | G41: =F41*Componentes!$E$56 -> 0 | H41: =IF(Tecno!H41<>"",Tecno!H41,"") ->  | I41: =Componentes!$J$31*C41 -> 0 | J41: =D41+G41+I41 -> 0
A42: Adubação de Manutenção | D42: =B42*Componentes!$J$12+C42*Componentes!$J$13 -> 0 | G42: =F42*Componentes!$E$53/1000 -> 0 | I42: =Componentes!$J$31*C42 -> 0 | J42: =D42+G42+I42 -> 0
A43: Controle formiga manutenção | B43: =Tecno!B43 -> 1.4 | C43: =Tecno!C43 -> 0 | D43: =B43*Componentes!$J$12+C43*Componentes!$J$13 -> 19.95 | E43: =IF(Tecno!E43<>"",Tecno!E43,"") -> Formicida granulado | F43: =Tecno!F43 -> 0.6 | G43: =F43*Componentes!$E$55 -> 26.46 | H43: =IF(Tecno!H43<>"",Tecno!H43,"") ->  | J43: =D43+G43+I43 -> 46.41
A44: Patrolamento Aceiro | B44: =Tecno!B44 -> 0 | C44: =Tecno!C44 -> 0 | D44: =B44*Componentes!$J$12+C44*Componentes!$J$13 -> 0 | E44: =IF(Tecno!E44<>"",Tecno!E44,"") ->  | F44: =Tecno!F44 -> 0 | H44: =IF(Tecno!H44<>"",Tecno!H44,"") ->  | I44: =Componentes!$J$28*C44 -> 0 | J44: =D44+G44+I44 -> 0
A45: Demais Manutenções | J45: =SUM(J41:J44)+Componentes!$H$4 -> 246.41
A47: Controle formiga manutenção | B47: =Tecno!B47 -> 1.4 | C47: =Tecno!C47 -> 0 | D47: =B47*Componentes!$J$12+C47*Componentes!$J$13 -> 19.95 | E47: =IF(Tecno!E47<>"",Tecno!E47,"") -> Formicida granulado | F47: =Tecno!F47 -> 0.6 | G47: =F47*Componentes!$E$55 -> 26.46 | H47: =IF(Tecno!H47<>"",Tecno!H47,"") ->  | J47: =D47+G47+I47 -> 46.41
A48: Patrolamento Aceiro | D48: =B48*Componentes!$J$12+C48*Componentes!$J$13 -> 0 | E48: =IF(Tecno!E48<>"",Tecno!E48,"") ->  | F48: =Tecno!F48 -> 0 | I48: =Componentes!$J$28*C48 -> 0 | J48: =D48+G48+I48 -> 0
J49: =SUM(J47:J48)+Componentes!$H$4 -> 246.41

Sheet EucEne2Rot
A1: Detalhamento dos Custos das Operações - Eucalipto p/ Energia - Ciclos c/ 2 Rotações
A2: (Rendimento técnico da MDO em homem-hora/hectare)
A3: (Para MDO, considerou-se apenas MDO tipo braçal e tratorista)
A4: (Rendimento técnico do equipamento em hora-máquina/hectare)
A5: (Custo total da operação em $/hectare)
A7: PRIMEIRA ROTAÇÃO | D7: Volume aos 7 anos (m3): | E7: 149.7725468
A8: Plantio | B8: Mão-de-Obra | E8: Insumo | H8: Máquinas
B9: Braçal | C9: Tratorista | D9: Custo | E9: Produto | F9: Quantidade | G9: Custo | H9: Equipamento | I9: Custo | J9: Custo Total
A10: Conservação do Solo | B10: =Tecno!B10/2 -> 0 | C10: =Tecno!C10/2 -> 0 | D10: =B10*Componentes!$J$12+C10*Componentes!$J$13 -> 0 | E10: =IF(Tecno!E10<>"",Tecno!E10,"") ->  | F10: =Tecno!F10 -> 0 | H10: =IF(Tecno!H10<>"",Tecno!H10,"") ->  | I10: =Componentes!J29*C10 -> 0 | J10: =D10+G10+I10 -> 0
A11: Construção de Aceiros | B11: =Tecno!B11/2 -> 0 | C11: =Tecno!C11/2 -> 0 | D11: =B11*Componentes!$J$12+C11*Componentes!$J$13 -> 0 | E11: =IF(Tecno!E11<>"",Tecno!E11,"") ->  | F11: =Tecno!F11 -> 0 | H11: =IF(Tecno!H11<>"",Tecno!H11,"") ->  | I11: =Componentes!J29*C11 -> 0 | J11: =D11+G11+I11 -> 0
A12: Calagem | B12: =Tecno!B12 -> 1.2 | C12: =Tecno!C12 -> 1.2 | D12: =B12*Componentes!$J$12+C12*Componentes!$J$13 -> 28.77235495 | E12: =IF(Tecno!E12<>"",Tecno!E12,"") -> Calcário dolomítico | F12: =Tecno!F12 -> 4 | G12: =F12*Componentes!E47 -> 340 | H12: =IF(Tecno!H12<>"",Tecno!H12,"") -> MF 290 + Aplicador calcário | I12: =Componentes!J36*C12 -> 83.25 | J12: =D12+G12+I12 -> 452.0223549
A13: Combate a formiga 1 | B13: =Tecno!B13 -> 2.32 | C13: =Tecno!C13 -> 0 | D13: =B13*Componentes!$J$12+C13*Componentes!$J$13 -> 33.06 | E13: =IF(Tecno!E13<>"",Tecno!E13,"") -> Formicida granulado | F13: =Tecno!F13 -> 1.5 | G13: =F13*Componentes!$E$55 -> 66.15 | H13: =IF(Tecno!H13<>"",Tecno!H13,"") ->  | J13: 99.21
A14: Combate a formiga 2 | D14: =B14*Componentes!$J$12+C14*Componentes!$J$13 -> 0 | G14: =F14*Componentes!$E$55 -> 0 | H14: =IF(Tecno!H14<>"",Tecno!H14,"") ->  | J14: 0
A15: Combate a formiga 3 | D15: =B15*Componentes!$J$12+C15*Componentes!$J$13 -> 0 | G15: =F15*Componentes!$E$55 -> 0 | H15: =IF(Tecno!H15<>"",Tecno!H15,"") ->  | J15: 0
A16: Controle Químico Mec. Total | B16: =Tecno!B16 -> 0 | C16: =Tecno!C16 -> 0 | D16: =B16*Componentes!$J$12+C16*Componentes!$J$13 -> 0 | E16: =IF(Tecno!E16<>"",Tecno!E16,"") ->  | F16: =Tecno!F16 -> 0 | G16: =F16*Componentes!$E$56 -> 0 | H16: =IF(Tecno!H16<>"",Tecno!H16,"") ->  | I16: =Componentes!$J$31*C16 -> 0 | J16: 0
A17: Subsolagem | B17: =Tecno!B17 -> 0 | C17: =Tecno!C17 -> 0 | D17: =B17*Componentes!$J$12+C17*Componentes!$J$13 -> 0 | E17: =IF(Tecno!E17<>"",Tecno!E17,"") ->  | F17: =Tecno!F17 -> 0 | H17: =IF(Tecno!H17<>"",Tecno!H17,"") ->  | I17: =Componentes!J40*C17 -> 0 | J17: 0
A18: Coveamento | B18: =Tecno!B18 -> 16 | C18: =Tecno!C18 -> 0 | D18: =B18*Componentes!$J$12+C18*Componentes!$J$13 -> 228 | E18: =IF(Tecno!E18<>"",Tecno!E18,"") ->  | F18: =Tecno!F18 -> 0 | H18: =IF(Tecno!H18<>"",Tecno!H18,"") ->  | J18: 228
A19: Adubação | B19: =Tecno!B19 -> 1.2 | C19: =Tecno!C19 -> 1.2 | D19: =B19*Componentes!$J$12+C19*Componentes!$J$13 -> 28.77235495 | E19: =IF(Tecno!E19<>"",Tecno!E19,"") -> NPK-6:30:6 | F19: =Tecno!F19 -> 200 | G19: =F19*Componentes!$E$52/1000 -> 200 | H19: =IF(Tecno!H19<>"",Tecno!H19,"") -> MF 290 + Aplicador Adubo Granulado | I19: =Componentes!J37*C19 -> 86.025 | J19: 314.7973549
A20: Plantio | B20: =Tecno!B20 -> 12 | C20: =Tecno!C20 -> 3 | D20: =B20*Componentes!$J$12+C20*Componentes!$J$13 -> 200.1808874 | E20: =IF(Tecno!E20<>"",Tecno!E20,"") -> Mudas | F20: =Tecno!F20 -> 1667 | G20: =F20*Componentes!E46/1000 -> 583.45 | H20: =IF(Tecno!H20<>"",Tecno!H20,"") -> Valmet 880 + carreta | I20: =Componentes!J39*C20 -> 155.4 | J20: =D20+G20+I20 -> 939.0308874
A21: Irrigação | B21: =Tecno!B21 -> 0 | C21: =Tecno!C21 -> 0 | D21: =B21*Componentes!$J$12+C21*Componentes!$J$13 -> 0 | E21: =IF(Tecno!E21<>"",Tecno!E21,"") ->  | F21: =Tecno!F21 -> 0 | H21: =IF(Tecno!H21<>"",Tecno!H21,"") ->  | I21: =1.31*Componentes!J31 -> 57.558125 | J21: =D21+G21+I21 -> 57.558125
A22: Levantamento Sobrevivência | B22: =Tecno!B22 -> 0 | C22: =Tecno!C22 -> 0 | D22: =B22*Componentes!$J$12+C22*Componentes!$J$13 -> 0 | E22: =IF(Tecno!E22<>"",Tecno!E22,"") ->  | F22: =Tecno!F22 -> 0 | H22: =IF(Tecno!H22<>"",Tecno!H22,"") -> 
A23: Replantio | B23: =Tecno!B23 -> 0 | C23: =Tecno!C23 -> 0 | D23: =B23*Componentes!$J$12+C23*Componentes!$J$13 -> 0 | E23: =IF(Tecno!E23<>"",Tecno!E23,"") ->  | F23: =Tecno!F23 -> 0 | H23: =IF(Tecno!H23<>"",Tecno!H23,"") ->  | I23: =Componentes!J39*C23 -> 0 | J23: =D23+G23+I23 -> 0
A24: Adubação cobertura | B24: =Tecno!B24 -> 0 | C24: =Tecno!C24 -> 0 | D24: =B24*Componentes!$J$12+C24*Componentes!$J$13 -> 0 | E24: =IF(Tecno!E24<>"",Tecno!E24,"") ->  | F24: =Tecno!F24 -> 0 | G24: =F24*Componentes!E54/1000 -> 0 | H24: =IF(Tecno!H24<>"",Tecno!H24,"") ->  | I24: =Componentes!J37*C24 -> 0 | J24: =D24+G24+I24 -> 0
A25: Primeira Manutenção | J25: =SUM(J10:J24)+Componentes!$H$4 -> 2290.618722
A27: Conservação do Solo | B27: =Tecno!B27/2 -> 0 | C27: =Tecno!C27/2 -> 0 | D27: =B27*Componentes!$J$12+C27*Componentes!$J$13 -> 0 | E27: =IF(Tecno!E27<>"",Tecno!E27,"") ->  | F27: =Tecno!F27 -> 0 | H27: =IF(Tecno!H27<>"",Tecno!H27,"") ->  | I27: =Componentes!$J$29*C27 -> 0 | J27: =D27+G27+I27 -> 0
A28: Controle Químico Linha | B28: =Tecno!B28 -> 6 | C28: =Tecno!C28 -> 0 | D28: =B28*Componentes!$J$12+C28*Componentes!$J$13 -> 85.5 | E28: =IF(Tecno!E28<>"",Tecno!E28,"") -> Round up | F28: =Tecno!F28 -> 0.94 | G28: =F28*Componentes!$E$56 -> 63.779 | H28: =IF(Tecno!H28<>"",Tecno!H28,"") -> Pulverizador costal motorizado | I28: =Componentes!J23*B28 -> 21.3675 | J28: 170.6465
A29: Controle Químico Entrelinha | D29: =B29*Componentes!$J$12+C29*Componentes!$J$13 -> 0 | G29: =F29*Componentes!$E$56 -> 0 | I29: =Componentes!$J$31*C29 -> 0 | J29: 0
A30: Controle de formigas | B30: =Tecno!B30 -> 1.8 | C30: =Tecno!C30 -> 0 | D30: =B30*Componentes!$J$12+C30*Componentes!$J$13 -> 25.65 | E30: =IF(Tecno!E30<>"",Tecno!E30,"") -> Formicida granulado | F30: =Tecno!F30 -> 0.7 | G30: =F30*Componentes!$E$55 -> 30.87 | H30: =IF(Tecno!H30<>"",Tecno!H30,"") -> Caminhão + Carreta 4 ton. | J30: 56.52
A31: Adubação de reforço manual | B31: =Tecno!B31 -> 11.63 | C31: =Tecno!C31 -> 0.94 | D31: =B31*Componentes!$J$12+C31*Componentes!$J$13 -> 174.8708447 | E31: =IF(Tecno!E31<>"",Tecno!E31,"") -> NPK-6:30:6 | F31: =Tecno!F31 -> 200 | G31: =F31*Componentes!$E$52/1000 -> 200 | H31: =IF(Tecno!H31<>"",Tecno!H31,"") ->  | J31: 374.8708447
A32: Manutenção de Aceiros | B32: =Tecno!B32/2 -> 0 | C32: =Tecno!C32/2 -> 0 | D32: =B32*Componentes!$J$12+C32*Componentes!$J$13 -> 0 | E32: =IF(Tecno!E32<>"",Tecno!E32,"") ->  | F32: =Tecno!F32 -> 0 | H32: =IF(Tecno!H32<>"",Tecno!H32,"") ->  | I32: =Componentes!$J$29*C32 -> 0 | J32: 0
A33: Segunda Manutenção | J33: =SUM(J27:J32)+Componentes!$H$4 -> 802.0373447
A35: Controle Químico Entrelinha | B35: =Tecno!B35 -> 0 | C35: =Tecno!C35 -> 0 | D35: =B35*Componentes!$J$12+C35*Componentes!$J$13 -> 0 | E35: =IF(Tecno!E35<>"",Tecno!E35,"") ->  | F35: =Tecno!F35 -> 0 | G35: =F35*Componentes!$E$56 -> 0 | H35: =IF(Tecno!H35<>"",Tecno!H35,"") ->  | I35: =Componentes!$J$31*C35 -> 0 | J35: =D35+G35+I35 -> 0
A36: Fosfatagem | D36: =B36*Componentes!$J$12+C36*Componentes!$J$13 -> 0 | G36: =F36*Componentes!$E$50/1000 -> 0 | I36: =Componentes!$J$37*C36 -> 0 | J36: =D36+G36+I36 -> 0
A37: Roçada Manual Linha | B37: =Tecno!B37 -> 8 | C37: =Tecno!C37 -> 0 | D37: =B37*Componentes!$J$12+C37*Componentes!$J$13 -> 114 | E37: =IF(Tecno!E37<>"",Tecno!E37,"") ->  | F37: =Tecno!F37 -> 0 | H37: =IF(Tecno!H37<>"",Tecno!H37,"") ->  | J37: =D37+G37+I37 -> 114
A38: Patrolamento Aceiro | B38: =Tecno!B38 -> 0 | C38: =Tecno!C38 -> 0 | D38: =B38*Componentes!$J$12+C38*Componentes!$J$13 -> 0 | E38: =IF(Tecno!E38<>"",Tecno!E38,"") ->  | F38: =Tecno!F38 -> 0 | H38: =IF(Tecno!H38<>"",Tecno!H38,"") ->  | I38: =Componentes!$J$28*C38 -> 0 | J38: =D38+G38+I38 -> 0
A39: Terceira Manutenção | J39: =SUM(J35:J38)+Componentes!$H$4 -> 314
A41: Controle Químico Entrelinha | B41: =Tecno!B41 -> 0 | C41: =Tecno!C41 -> 0 | D41: =B41*Componentes!$J$12+C41*Componentes!$J$13 -> 0 | E41: =IF(Tecno!E41<>"",Tecno!E41,"") ->  | F41: =Tecno!F41 -> 0 | G41: =F41*Componentes!$E$56 -> 0 | H41: =IF(Tecno!H41<>"",Tecno!H41,"") ->  | I41: =Componentes!$J$31*C41 -> 0 | J41: =D41+G41+I41 -> 0
A42: Adubação de Manutenção | D42: =B42*Componentes!$J$12+C42*Componentes!$J$13 -> 0 | G42: =F42*Componentes!$E$53/1000 -> 0 | I42: =Componentes!$J$31*C42 -> 0 | J42: =D42+G42+I42 -> 0
A43: Controle formiga manutenção | B43: =Tecno!B43 -> 1.4 | C43: =Tecno!C43 -> 0 | D43: =B43*Componentes!$J$12+C43*Componentes!$J$13 -> 19.95 | E43: =IF(Tecno!E43<>"",Tecno!E43,"") -> Formicida granulado | F43: =Tecno!F43 -> 0.6 | G43: =F43*Componentes!$E$55 -> 26.46 | H43: =IF(Tecno!H43<>"",Tecno!H43,"") ->  | J43: =D43+G43+I43 -> 46.41
A44: Patrolamento Aceiro | B44: =Tecno!B44 -> 0 | C44: =Tecno!C44 -> 0 | D44: =B44*Componentes!$J$12+C44*Componentes!$J$13 -> 0 | E44: =IF(Tecno!E44<>"",Tecno!E44,"") ->  | F44: =Tecno!F44 -> 0 | H44: =IF(Tecno!H44<>"",Tecno!H44,"") ->  | I44: =Componentes!$J$28*C44 -> 0 | J44: =D44+G44+I44 -> 0
A45: Demais Manutenções | J45: =SUM(J41:J44)+Componentes!$H$4 -> 246.41
A47: Controle formiga manutenção | B47: =Tecno!B47 -> 1.4 | C47: =Tecno!C47 -> 0 | D47: =B47*Componentes!$J$12+C47*Componentes!$J$13 -> 19.95 | E47: =IF(Tecno!E47<>"",Tecno!E47,"") -> Formicida granulado | F47: =Tecno!F47 -> 0.6 | G47: =F47*Componentes!$E$55 -> 26.46 | H47: =IF(Tecno!H47<>"",Tecno!H47,"") ->  | J47: =D47+G47+I47 -> 46.41
A48: Patrolamento Aceiro | D48: =B48*Componentes!$J$12+C48*Componentes!$J$13 -> 0 | E48: =IF(Tecno!E48<>"",Tecno!E48,"") ->  | F48: =Tecno!F48 -> 0 | I48: =Componentes!$J$28*C48 -> 0 | J48: =D48+G48+I48 -> 0
J49: =SUM(J47:J48)+Componentes!$H$4 -> 246.41
A50: SEGUNDA ROTAÇÃO | D50: Volume aos 7 anos (m3): | E50: 134.2546186
A51: Primeira Manutenção | B51: Mão-de-Obra | E51: Insumo | H51: Máquinas
B52: Braçal | C52: Tratorista | D52: Custo | E52: Produto | F52: Quantidade | G52: Custo | H52: Equipamento | I52: Custo | J52: Custo Total
A53: Controle Químico Linha | B53: =Tecno!B53 -> 6 | C53: =Tecno!C53 -> 0 | D53: =B53*Componentes!$J$12+C53*Componentes!$J$13 -> 85.5 | E53: =IF(Tecno!E53<>"",Tecno!E53,"") -> Round up | F53: =Tecno!F53 -> 0.94 | G53: =F53*Componentes!$E$56 -> 63.779 | H53: =IF(Tecno!H53<>"",Tecno!H53,"") ->  | J53: =D53+G53+I53 -> 149.279
A54: Controle Químico Entrelinha | D54: =B54*Componentes!$J$12+C54*Componentes!$J$13 -> 0 | G54: =F54*Componentes!$E$56 -> 0 | I54: =Componentes!$J$31*C54 -> 0 | J54: =D54+G54+I54 -> 0
A55: Controle de formigas | B55: =Tecno!B55 -> 1.8 | C55: =Tecno!C55 -> 0 | D55: =B55*Componentes!$J$12+C55*Componentes!$J$13 -> 25.65 | E55: =IF(Tecno!E55<>"",Tecno!E55,"") -> Formicida granulado | F55: =Tecno!F55 -> 0.7 | G55: =F55*Componentes!$E$55 -> 30.87 | H55: =IF(Tecno!H55<>"",Tecno!H55,"") ->  | J55: =D55+G55+I55 -> 56.52
A56: Adubação de Manutenção | B56: =Tecno!B56 -> 0.1 | C56: =Tecno!C56 -> 0.42 | D56: =B56*Componentes!$J$12+C56*Componentes!$J$13 -> 5.510324232 | E56: =IF(Tecno!E56<>"",Tecno!E56,"") -> NPK-8:5:18 líquido | F56: 250 | G56: =F56*Componentes!$E$53/1000 -> 250 | H56: =IF(Tecno!H56<>"",Tecno!H56,"") -> Trator Médio + Tanque pulverizador com 2 mangueiras | I56: =Componentes!$J$31*C56 -> 18.45375 | J56: =D56+G56+I56 -> 273.9640742
A57: Patrolamento Aceiro | B57: =Tecno!B57 -> 0 | C57: =Tecno!C57/2 -> 0 | D57: =B57*Componentes!$J$12+C57*Componentes!$J$13 -> 0 | E57: =IF(Tecno!E57<>"",Tecno!E57,"") ->  | F57: =Tecno!F57 -> 0 | H57: =IF(Tecno!H57<>"",Tecno!H57,"") ->  | I57: =Componentes!$J$28*C57 -> 0 | J57: =D57+G57+I57 -> 0
A58: Segunda Manutenção | J58: =SUM(J53:J57)+Componentes!$H$4 -> 679.7630742
A60: Controle Químico Entrelinha | B60: =Tecno!B60 -> 0 | C60: =Tecno!C60 -> 0 | D60: =B60*Componentes!$J$12+C60*Componentes!$J$13 -> 0 | E60: =IF(Tecno!E60<>"",Tecno!E60,"") ->  | F60: =Tecno!F60 -> 0 | G60: =F60*Componentes!$E$56 -> 0 | H60: =IF(Tecno!H60<>"",Tecno!H60,"") ->  | I60: =Componentes!$J$31*C60 -> 0 | J60: =D60+G60+I60 -> 0
A61: Fosfatagem | B61: =Tecno!B61 -> 0.66 | C61: =Tecno!C61 -> 1.02 | D61: =B61*Componentes!$J$12+C61*Componentes!$J$13 -> 19.32650171 | E61: =IF(Tecno!E61<>"",Tecno!E61,"") -> Superfosfato Simples | F61: 250 | G61: =Componentes!$E$50/1000*F61 -> 205.975 | H61: =IF(Tecno!H61<>"",Tecno!H61,"") -> MF 290 + Aplicador Adubo Granulado | I61: =Componentes!$J$37*C61 -> 73.12125 | J61: =D61+G61+I61 -> 298.4227517
A62: Desbrota | B62: =Tecno!B62/2 -> 6 | C62: =Tecno!C62 -> 0 | D62: =B62*Componentes!$J$12+C62*Componentes!$J$13 -> 85.5 | E62: =IF(Tecno!E62<>"",Tecno!E62,"") ->  | F62: =Tecno!F62 -> 0 | H62: =IF(Tecno!H62<>"",Tecno!H62,"") -> Motoroçadeira | I62: =Componentes!J23*B62 -> 21.3675 | J62: =D62+G62+I62 -> 106.8675
A63: Roçada Manual Linha | B63: =Tecno!B63 -> 4 | C63: =Tecno!C63 -> 0 | D63: =B63*Componentes!$J$12+C63*Componentes!$J$13 -> 57 | E63: =IF(Tecno!E63<>"",Tecno!E63,"") ->  | F63: =Tecno!F63 -> 0 | H63: =IF(Tecno!H63<>"",Tecno!H63,"") ->  | J63: =D63+G63+I63 -> 57
A64: Patrolamento Aceiro | B64: =Tecno!B64 -> 0 | C64: =Tecno!C64/2 -> 0 | D64: =B64*Componentes!$J$12+C64*Componentes!$J$13 -> 0 | E64: =IF(Tecno!E64<>"",Tecno!E64,"") ->  | F64: =Tecno!F64 -> 0 | H64: =IF(Tecno!H64<>"",Tecno!H64,"") ->  | I64: =Componentes!$J$28*C64 -> 0 | J64: =D64+G64+I64 -> 0
A65: Terceira Manutenção | J65: =SUM(J60:J64)+Componentes!$H$4 -> 662.2902517
A67: Controle Químico Entrelinha | B67: =Tecno!B67 -> 0 | C67: =Tecno!C67 -> 0 | D67: =B67*Componentes!$J$12+C67*Componentes!$J$13 -> 0 | E67: =IF(Tecno!E67<>"",Tecno!E67,"") ->  | F67: =Tecno!F67 -> 0 | G67: =F67*Componentes!$E$56 -> 0 | H67: =IF(Tecno!H67<>"",Tecno!H67,"") ->  | I67: =Componentes!$J$31*C67 -> 0 | J67: =D67+G67+I67 -> 0
A68: Adubação de Manutenção | B68: =Tecno!B68 -> 0 | C68: =Tecno!C68 -> 0 | D68: =B68*Componentes!$J$12+C68*Componentes!$J$13 -> 0 | E68: =IF(Tecno!E68<>"",Tecno!E68,"") ->  | F68: 250 | H68: =IF(Tecno!H68<>"",Tecno!H68,"") ->  | I68: =Componentes!$J$31*C68 -> 0 | J68: =D68+G68+I68 -> 0
A69: Controle formiga manutenção | B69: =Tecno!B69 -> 1.4 | C69: =Tecno!C69 -> 0 | D69: =B69*Componentes!$J$12+C69*Componentes!$J$13 -> 19.95 | E69: =IF(Tecno!E69<>"",Tecno!E69,"") -> Formicida granulado | F69: =Tecno!F69 -> 0.6 | G69: =F69*Componentes!$E$55 -> 26.46 | H69: =IF(Tecno!H69<>"",Tecno!H69,"") ->  | J69: =D69+G69+I69 -> 46.41
A70: Patrolamento Aceiro | B70: =Tecno!B70 -> 0 | C70: =Tecno!C70/2 -> 0 | D70: =B70*Componentes!$J$12+C70*Componentes!$J$13 -> 0 | E70: =IF(Tecno!E70<>"",Tecno!E70,"") ->  | F70: =Tecno!F70 -> 0 | H70: =IF(Tecno!H70<>"",Tecno!H70,"") ->  | I70: =Componentes!$J$28*C70 -> 0 | J70: =D70+G70+I70 -> 0
A71: Demais Manutenções | J71: =SUM(J67:J70)+Componentes!$H$4 -> 246.41
A73: Controle formiga manutenção | B73: =Tecno!B73 -> 1.4 | C73: =Tecno!C73 -> 0 | D73: =B73*Componentes!$J$12+C73*Componentes!$J$13 -> 19.95 | E73: =IF(Tecno!E73<>"",Tecno!E73,"") -> Formicida granulado | F73: =Tecno!F73 -> 0.6 | G73: =F73*Componentes!$E$55 -> 26.46 | H73: =IF(Tecno!H73<>"",Tecno!H73,"") ->  | J73: =D73+G73+I73 -> 46.41
A74: Patrolamento Aceiro | D74: =B74*Componentes!$J$12+C74*Componentes!$J$13 -> 0 | E74: =IF(Tecno!E74<>"",Tecno!E74,"") ->  | F74: =Tecno!F74 -> 0 | H74: =IF(Tecno!H74<>"",Tecno!H74,"") ->  | I74: =Componentes!$J$28*C74 -> 0 | J74: =D74+G74+I74 -> 0
J75: =SUM(J73:J74)+Componentes!$H$4 -> 246.41

Sheet EucEne3Rot
A1: Detalhamento dos Custos das Operações - Eucalipto p/ Energia - Ciclos c/ 3 Rotações
A2: (Rendimento técnico da MDO em homem-hora/hectare)
A3: (Para MDO, considerou-se apenas MDO tipo braçal e tratorista)
A4: (Rendimento técnico do equipamento em hora-máquina/hectare)
A5: (Custo total da operação em $/hectare)
A7: PRIMEIRA ROTAÇÃO | D7: Volume aos 7 anos (m3): | E7: 149.7725468
A8: Plantio | B8: Mão-de-Obra | E8: Insumo | H8: Máquinas
B9: Braçal | C9: Tratorista | D9: Custo | E9: Produto | F9: Quantidade | G9: Custo | H9: Equipamento | I9: Custo | J9: Custo Total
A10: Conservação do Solo | B10: =Tecno!B10/2 -> 0 | C10: =Tecno!C10/2 -> 0 | D10: =B10*Componentes!$J$12+C10*Componentes!$J$13 -> 0 | E10: =IF(Tecno!E10<>"",Tecno!E10,"") ->  | F10: =Tecno!F10 -> 0 | H10: =IF(Tecno!H10<>"",Tecno!H10,"") ->  | I10: =Componentes!J29*C10 -> 0 | J10: =D10+G10+I10 -> 0
A11: Construção de Aceiros | B11: =Tecno!B11/2 -> 0 | C11: =Tecno!C11/2 -> 0 | D11: =B11*Componentes!$J$12+C11*Componentes!$J$13 -> 0 | E11: =IF(Tecno!E11<>"",Tecno!E11,"") ->  | F11: =Tecno!F11 -> 0 | H11: =IF(Tecno!H11<>"",Tecno!H11,"") ->  | I11: =Componentes!J29*C11 -> 0 | J11: =D11+G11+I11 -> 0
A12: Calagem | B12: =Tecno!B12 -> 1.2 | C12: =Tecno!C12 -> 1.2 | D12: =B12*Componentes!$J$12+C12*Componentes!$J$13 -> 28.77235495 | E12: =IF(Tecno!E12<>"",Tecno!E12,"") -> Calcário dolomítico | F12: =Tecno!F12 -> 4 | G12: =F12*Componentes!E47 -> 340 | H12: =IF(Tecno!H12<>"",Tecno!H12,"") -> MF 290 + Aplicador calcário | I12: =Componentes!J36*C12 -> 83.25 | J12: =D12+G12+I12 -> 452.0223549
A13: Combate a formiga 1 | B13: =Tecno!B13 -> 2.32 | C13: =Tecno!C13 -> 0 | D13: =B13*Componentes!$J$12+C13*Componentes!$J$13 -> 33.06 | E13: =IF(Tecno!E13<>"",Tecno!E13,"") -> Formicida granulado | F13: =Tecno!F13 -> 1.5 | G13: =F13*Componentes!$E$55 -> 66.15 | H13: =IF(Tecno!H13<>"",Tecno!H13,"") ->  | J13: 99.21
A14: Combate a formiga 2 | D14: =B14*Componentes!$J$12+C14*Componentes!$J$13 -> 0 | G14: =F14*Componentes!$E$55 -> 0 | H14: =IF(Tecno!H14<>"",Tecno!H14,"") ->  | J14: 0
A15: Combate a formiga 3 | D15: =B15*Componentes!$J$12+C15*Componentes!$J$13 -> 0 | G15: =F15*Componentes!$E$55 -> 0 | H15: =IF(Tecno!H15<>"",Tecno!H15,"") ->  | J15: 0
A16: Controle Químico Mec. Total | B16: =Tecno!B16 -> 0 | C16: =Tecno!C16 -> 0 | D16: =B16*Componentes!$J$12+C16*Componentes!$J$13 -> 0 | E16: =IF(Tecno!E16<>"",Tecno!E16,"") ->  | F16: =Tecno!F16 -> 0 | G16: =F16*Componentes!$E$56 -> 0 | H16: =IF(Tecno!H16<>"",Tecno!H16,"") ->  | I16: =Componentes!$J$31*C16 -> 0 | J16: 0
A17: Subsolagem | B17: =Tecno!B17 -> 0 | C17: =Tecno!C17 -> 0 | D17: =B17*Componentes!$J$12+C17*Componentes!$J$13 -> 0 | E17: =IF(Tecno!E17<>"",Tecno!E17,"") ->  | F17: =Tecno!F17 -> 0 | H17: =IF(Tecno!H17<>"",Tecno!H17,"") ->  | I17: =Componentes!J40*C17 -> 0 | J17: 0
A18: Coveamento | B18: =Tecno!B18 -> 16 | C18: =Tecno!C18 -> 0 | D18: =B18*Componentes!$J$12+C18*Componentes!$J$13 -> 228 | E18: =IF(Tecno!E18<>"",Tecno!E18,"") ->  | F18: =Tecno!F18 -> 0 | H18: =IF(Tecno!H18<>"",Tecno!H18,"") ->  | J18: 228
A19: Adubação | B19: =Tecno!B19 -> 1.2 | C19: =Tecno!C19 -> 1.2 | D19: =B19*Componentes!$J$12+C19*Componentes!$J$13 -> 28.77235495 | E19: =IF(Tecno!E19<>"",Tecno!E19,"") -> NPK-6:30:6 | F19: =Tecno!F19 -> 200 | G19: =F19*Componentes!$E$52/1000 -> 200 | H19: =IF(Tecno!H19<>"",Tecno!H19,"") -> MF 290 + Aplicador Adubo Granulado | I19: =Componentes!J37*C19 -> 86.025 | J19: 314.7973549
A20: Plantio | B20: =Tecno!B20 -> 12 | C20: =Tecno!C20 -> 3 | D20: =B20*Componentes!$J$12+C20*Componentes!$J$13 -> 200.1808874 | E20: =IF(Tecno!E20<>"",Tecno!E20,"") -> Mudas | F20: =Tecno!F20 -> 1667 | G20: =F20*Componentes!E46/1000 -> 583.45 | H20: =IF(Tecno!H20<>"",Tecno!H20,"") -> Valmet 880 + carreta | I20: =Componentes!J39*C20 -> 155.4 | J20: =D20+G20+I20 -> 939.0308874
A21: Irrigação | B21: =Tecno!B21 -> 0 | C21: =Tecno!C21 -> 0 | D21: =B21*Componentes!$J$12+C21*Componentes!$J$13 -> 0 | E21: =IF(Tecno!E21<>"",Tecno!E21,"") ->  | F21: =Tecno!F21 -> 0 | H21: =IF(Tecno!H21<>"",Tecno!H21,"") ->  | I21: =1.31*Componentes!J31 -> 57.558125 | J21: =D21+G21+I21 -> 57.558125
A22: Levantamento Sobrevivência | B22: =Tecno!B22 -> 0 | C22: =Tecno!C22 -> 0 | D22: =B22*Componentes!$J$12+C22*Componentes!$J$13 -> 0 | E22: =IF(Tecno!E22<>"",Tecno!E22,"") ->  | F22: =Tecno!F22 -> 0 | H22: =IF(Tecno!H22<>"",Tecno!H22,"") -> 
A23: Replantio | B23: =Tecno!B23 -> 0 | C23: =Tecno!C23 -> 0 | D23: =B23*Componentes!$J$12+C23*Componentes!$J$13 -> 0 | E23: =IF(Tecno!E23<>"",Tecno!E23,"") ->  | F23: =Tecno!F23 -> 0 | H23: =IF(Tecno!H23<>"",Tecno!H23,"") ->  | I23: =Componentes!J39*C23 -> 0 | J23: =D23+G23+I23 -> 0
A24: Adubação cobertura | B24: =Tecno!B24 -> 0 | C24: =Tecno!C24 -> 0 | D24: =B24*Componentes!$J$12+C24*Componentes!$J$13 -> 0 | E24: =IF(Tecno!E24<>"",Tecno!E24,"") ->  | F24: =Tecno!F24 -> 0 | G24: =F24*Componentes!E54/1000 -> 0 | H24: =IF(Tecno!H24<>"",Tecno!H24,"") ->  | I24: =Componentes!J37*C24 -> 0 | J24: =D24+G24+I24 -> 0
A25: Primeira Manutenção | J25: =SUM(J10:J24)+Componentes!$H$4 -> 2290.618722
A27: Conservação do Solo | B27: =Tecno!B27/2 -> 0 | C27: =Tecno!C27/2 -> 0 | D27: =B27*Componentes!$J$12+C27*Componentes!$J$13 -> 0 | E27: =IF(Tecno!E27<>"",Tecno!E27,"") ->  | F27: =Tecno!F27 -> 0 | H27: =IF(Tecno!H27<>"",Tecno!H27,"") ->  | I27: =Componentes!$J$29*C27 -> 0 | J27: =D27+G27+I27 -> 0
A28: Controle Químico Linha | B28: =Tecno!B28 -> 6 | C28: =Tecno!C28 -> 0 | D28: =B28*Componentes!$J$12+C28*Componentes!$J$13 -> 85.5 | E28: =IF(Tecno!E28<>"",Tecno!E28,"") -> Round up | F28: =Tecno!F28 -> 0.94 | G28: =F28*Componentes!$E$56 -> 63.779 | H28: =IF(Tecno!H28<>"",Tecno!H28,"") -> Pulverizador costal motorizado | I28: =Componentes!J23*B28 -> 21.3675 | J28: 170.6465
A29: Controle Químico Entrelinha | D29: =B29*Componentes!$J$12+C29*Componentes!$J$13 -> 0 | G29: =F29*Componentes!$E$56 -> 0 | I29: =Componentes!$J$31*C29 -> 0 | J29: 0
A30: Controle de formigas | B30: =Tecno!B30 -> 1.8 | C30: =Tecno!C30 -> 0 | D30: =B30*Componentes!$J$12+C30*Componentes!$J$13 -> 25.65 | E30: =IF(Tecno!E30<>"",Tecno!E30,"") -> Formicida granulado | F30: =Tecno!F30 -> 0.7 | G30: =F30*Componentes!$E$55 -> 30.87 | H30: =IF(Tecno!H30<>"",Tecno!H30,"") -> Caminhão + Carreta 4 ton. | J30: 56.52
A31: Adubação de reforço manual | B31: =Tecno!B31 -> 11.63 | C31: =Tecno!C31 -> 0.94 | D31: =B31*Componentes!$J$12+C31*Componentes!$J$13 -> 174.8708447 | E31: =IF(Tecno!E31<>"",Tecno!E31,"") -> NPK-6:30:6 | F31: =Tecno!F31 -> 200 | G31: =F31*Componentes!$E$52/1000 -> 200 | H31: =IF(Tecno!H31<>"",Tecno!H31,"") ->  | J31: 374.8708447
A32: Manutenção de Aceiros | B32: =Tecno!B32/2 -> 0 | C32: =Tecno!C32/2 -> 0 | D32: =B32*Componentes!$J$12+C32*Componentes!$J$13 -> 0 | E32: =IF(Tecno!E32<>"",Tecno!E32,"") ->  | F32: =Tecno!F32 -> 0 | H32: =IF(Tecno!H32<>"",Tecno!H32,"") ->  | I32: =Componentes!$J$29*C32 -> 0 | J32: 0
A33: Segunda Manutenção | J33: =SUM(J27:J32)+Componentes!$H$4 -> 802.0373447
A35: Controle Químico Entrelinha | B35: =Tecno!B35 -> 0 | C35: =Tecno!C35 -> 0 | D35: =B35*Componentes!$J$12+C35*Componentes!$J$13 -> 0 | E35: =IF(Tecno!E35<>"",Tecno!E35,"") ->  | F35: =Tecno!F35 -> 0 | G35: =F35*Componentes!$E$56 -> 0 | H35: =IF(Tecno!H35<>"",Tecno!H35,"") ->  | I35: =Componentes!$J$31*C35 -> 0 | J35: =D35+G35+I35 -> 0
A36: Fosfatagem | D36: =B36*Componentes!$J$12+C36*Componentes!$J$13 -> 0 | G36: =F36*Componentes!$E$50/1000 -> 0 | I36: =Componentes!$J$37*C36 -> 0 | J36: =D36+G36+I36 -> 0
A37: Roçada Manual Linha | B37: =Tecno!B37 -> 8 | C37: =Tecno!C37 -> 0 | D37: =B37*Componentes!$J$12+C37*Componentes!$J$13 -> 114 | E37: =IF(Tecno!E37<>"",Tecno!E37,"") ->  | F37: =Tecno!F37 -> 0 | H37: =IF(Tecno!H37<>"",Tecno!H37,"") ->  | J37: =D37+G37+I37 -> 114
A38: Patrolamento Aceiro | B38: =Tecno!B38 -> 0 | C38: =Tecno!C38 -> 0 | D38: =B38*Componentes!$J$12+C38*Componentes!$J$13 -> 0 | E38: =IF(Tecno!E38<>"",Tecno!E38,"") ->  | F38: =Tecno!F38 -> 0 | H38: =IF(Tecno!H38<>"",Tecno!H38,"") ->  | I38: =Componentes!$J$28*C38 -> 0 | J38: =D38+G38+I38 -> 0
A39: Terceira Manutenção | J39: =SUM(J35:J38)+Componentes!$H$4 -> 314
A41: Controle Químico Entrelinha | B41: =Tecno!B41 -> 0 | C41: =Tecno!C41 -> 0 | D41: =B41*Componentes!$J$12+C41*Componentes!$J$13 -> 0 | E41: =IF(Tecno!E41<>"",Tecno!E41,"") ->  | F41: =Tecno!F41 -> 0 | G41: =F41*Componentes!$E$56 -> 0 | H41: =IF(Tecno!H41<>"",Tecno!H41,"") ->  | I41: =Componentes!$J$31*C41 -> 0 | J41: =D41+G41+I41 -> 0
A42: Adubação de Manutenção | D42: =B42*Componentes!$J$12+C42*Componentes!$J$13 -> 0 | G42: =F42*Componentes!$E$53/1000 -> 0 | I42: =Componentes!$J$31*C42 -> 0 | J42: =D42+G42+I42 -> 0
A43: Controle formiga manutenção | B43: =Tecno!B43 -> 1.4 | C43: =Tecno!C43 -> 0 | D43: =B43*Componentes!$J$12+C43*Componentes!$J$13 -> 19.95 | E43: =IF(Tecno!E43<>"",Tecno!E43,"") -> Formicida granulado | F43: =Tecno!F43 -> 0.6 | G43: =F43*Componentes!$E$55 -> 26.46 | H43: =IF(Tecno!H43<>"",Tecno!H43,"") ->  | J43: =D43+G43+I43 -> 46.41
A44: Patrolamento Aceiro | B44: =Tecno!B44 -> 0 | C44: =Tecno!C44 -> 0 | D44: =B44*Componentes!$J$12+C44*Componentes!$J$13 -> 0 | E44: =IF(Tecno!E44<>"",Tecno!E44,"") ->  | F44: =Tecno!F44 -> 0 | H44: =IF(Tecno!H44<>"",Tecno!H44,"") ->  | I44: =Componentes!$J$28*C44 -> 0 | J44: =D44+G44+I44 -> 0
A45: Demais Manutenções | J45: =SUM(J41:J44)+Componentes!$H$4 -> 246.41
A47: Controle formiga manutenção | B47: =Tecno!B47 -> 1.4 | C47: =Tecno!C47 -> 0 | D47: =B47*Componentes!$J$12+C47*Componentes!$J$13 -> 19.95 | E47: =IF(Tecno!E47<>"",Tecno!E47,"") -> Formicida granulado | F47: =Tecno!F47 -> 0.6 | G47: =F47*Componentes!$E$55 -> 26.46 | H47: =IF(Tecno!H47<>"",Tecno!H47,"") ->  | J47: =D47+G47+I47 -> 46.41
A48: Patrolamento Aceiro | D48: =B48*Componentes!$J$12+C48*Componentes!$J$13 -> 0 | E48: =IF(Tecno!E48<>"",Tecno!E48,"") ->  | F48: =Tecno!F48 -> 0 | I48: =Componentes!$J$28*C48 -> 0 | J48: =D48+G48+I48 -> 0
J49: =SUM(J47:J48)+Componentes!$H$4 -> 246.41
A50: SEGUNDA ROTAÇÃO | D50: Volume aos 7 anos (m3): | E50: 134.2546186
A51: Primeira Manutenção | B51: Mão-de-Obra | E51: Insumo | H51: Máquinas
B52: Braçal | C52: Tratorista | D52: Custo | E52: Produto | F52: Quantidade | G52: Custo | H52: Equipamento | I52: Custo | J52: Custo Total
A53: Controle Químico Linha | B53: =Tecno!B53 -> 6 | C53: =Tecno!C53 -> 0 | D53: =B53*Componentes!$J$12+C53*Componentes!$J$13 -> 85.5 | E53: =IF(Tecno!E53<>"",Tecno!E53,"") -> Round up | F53: =Tecno!F53 -> 0.94 | G53: =F53*Componentes!$E$56 -> 63.779 | H53: =IF(Tecno!H53<>"",Tecno!H53,"") ->  | J53: =D53+G53+I53 -> 149.279
A54: Controle Químico Entrelinha | D54: =B54*Componentes!$J$12+C54*Componentes!$J$13 -> 0 | G54: =F54*Componentes!$E$56 -> 0 | I54: =Componentes!$J$31*C54 -> 0 | J54: =D54+G54+I54 -> 0
A55: Controle de formigas | B55: =Tecno!B55 -> 1.8 | C55: =Tecno!C55 -> 0 | D55: =B55*Componentes!$J$12+C55*Componentes!$J$13 -> 25.65 | E55: =IF(Tecno!E55<>"",Tecno!E55,"") -> Formicida granulado | F55: =Tecno!F55 -> 0.7 | G55: =F55*Componentes!$E$55 -> 30.87 | H55: =IF(Tecno!H55<>"",Tecno!H55,"") ->  | J55: =D55+G55+I55 -> 56.52
A56: Adubação de Manutenção | B56: =Tecno!B56 -> 0.1 | C56: =Tecno!C56 -> 0.42 | D56: =B56*Componentes!$J$12+C56*Componentes!$J$13 -> 5.510324232 | E56: =IF(Tecno!E56<>"",Tecno!E56,"") -> NPK-8:5:18 líquido | F56: 250 | G56: =F56*Componentes!$E$53/1000 -> 250 | H56: =IF(Tecno!H56<>"",Tecno!H56,"") -> Trator Médio + Tanque pulverizador com 2 mangueiras | I56: =Componentes!$J$31*C56 -> 18.45375 | J56: =D56+G56+I56 -> 273.9640742
A57: Patrolamento Aceiro | B57: =Tecno!B57 -> 0 | C57: =Tecno!C57/2 -> 0 | D57: =B57*Componentes!$J$12+C57*Componentes!$J$13 -> 0 | E57: =IF(Tecno!E57<>"",Tecno!E57,"") ->  | F57: =Tecno!F57 -> 0 | H57: =IF(Tecno!H57<>"",Tecno!H57,"") ->  | I57: =Componentes!$J$28*C57 -> 0 | J57: =D57+G57+I57 -> 0
A58: Segunda Manutenção | J58: =SUM(J53:J57)+Componentes!$H$4 -> 679.7630742
A60: Controle Químico Entrelinha | B60: =Tecno!B60 -> 0 | C60: =Tecno!C60 -> 0 | D60: =B60*Componentes!$J$12+C60*Componentes!$J$13 -> 0 | E60: =IF(Tecno!E60<>"",Tecno!E60,"") ->  | F60: =Tecno!F60 -> 0 | G60: =F60*Componentes!$E$56 -> 0 | H60: =IF(Tecno!H60<>"",Tecno!H60,"") ->  | I60: =Componentes!$J$31*C60 -> 0 | J60: =D60+G60+I60 -> 0
A61: Fosfatagem | B61: =Tecno!B61 -> 0.66 | C61: =Tecno!C61 -> 1.02 | D61: =B61*Componentes!$J$12+C61*Componentes!$J$13 -> 19.32650171 | E61: =IF(Tecno!E61<>"",Tecno!E61,"") -> Superfosfato Simples | F61: 250 | G61: =Componentes!$E$50/1000*F61 -> 205.975 | H61: =IF(Tecno!H61<>"",Tecno!H61,"") -> MF 290 + Aplicador Adubo Granulado | I61: =Componentes!$J$37*C61 -> 73.12125 | J61: =D61+G61+I61 -> 298.4227517
A62: Desbrota | B62: =Tecno!B62/2 -> 6 | C62: =Tecno!C62 -> 0 | D62: =B62*Componentes!$J$12+C62*Componentes!$J$13 -> 85.5 | E62: =IF(Tecno!E62<>"",Tecno!E62,"") ->  | F62: =Tecno!F62 -> 0 | H62: =IF(Tecno!H62<>"",Tecno!H62,"") -> Motoroçadeira | I62: =Componentes!J23*B62 -> 21.3675 | J62: =D62+G62+I62 -> 106.8675
A63: Roçada Manual Linha | B63: =Tecno!B63 -> 4 | C63: =Tecno!C63 -> 0 | D63: =B63*Componentes!$J$12+C63*Componentes!$J$13 -> 57 | E63: =IF(Tecno!E63<>"",Tecno!E63,"") ->  | F63: =Tecno!F63 -> 0 | H63: =IF(Tecno!H63<>"",Tecno!H63,"") ->  | J63: =D63+G63+I63 -> 57
A64: Patrolamento Aceiro | B64: =Tecno!B64 -> 0 | C64: =Tecno!C64/2 -> 0 | D64: =B64*Componentes!$J$12+C64*Componentes!$J$13 -> 0 | E64: =IF(Tecno!E64<>"",Tecno!E64,"") ->  | F64: =Tecno!F64 -> 0 | H64: =IF(Tecno!H64<>"",Tecno!H64,"") ->  | I64: =Componentes!$J$28*C64 -> 0 | J64: =D64+G64+I64 -> 0
A65: Terceira Manutenção | J65: =SUM(J60:J64)+Componentes!$H$4 -> 662.2902517
A67: Controle Químico Entrelinha | B67: =Tecno!B67 -> 0 | C67: =Tecno!C67 -> 0 | D67: =B67*Componentes!$J$12+C67*Componentes!$J$13 -> 0 | E67: =IF(Tecno!E67<>"",Tecno!E67,"") ->  | F67: =Tecno!F67 -> 0 | G67: =F67*Componentes!$E$56 -> 0 | H67: =IF(Tecno!H67<>"",Tecno!H67,"") ->  | I67: =Componentes!$J$31*C67 -> 0 | J67: =D67+G67+I67 -> 0
A68: Adubação de Manutenção | B68: =Tecno!B68 -> 0 | C68: =Tecno!C68 -> 0 | D68: =B68*Componentes!$J$12+C68*Componentes!$J$13 -> 0 | E68: =IF(Tecno!E68<>"",Tecno!E68,"") ->  | F68: 250 | H68: =IF(Tecno!H68<>"",Tecno!H68,"") ->  | I68: =Componentes!$J$31*C68 -> 0 | J68: =D68+G68+I68 -> 0
A69: Controle formiga manutenção | B69: =Tecno!B69 -> 1.4 | C69: =Tecno!C69 -> 0 | D69: =B69*Componentes!$J$12+C69*Componentes!$J$13 -> 19.95 | E69: =IF(Tecno!E69<>"",Tecno!E69,"") -> Formicida granulado | F69: =Tecno!F69 -> 0.6 | G69: =F69*Componentes!$E$55 -> 26.46 | H69: =IF(Tecno!H69<>"",Tecno!H69,"") ->  | J69: =D69+G69+I69 -> 46.41
A70: Patrolamento Aceiro | B70: =Tecno!B70 -> 0 | C70: =Tecno!C70/2 -> 0 | D70: =B70*Componentes!$J$12+C70*Componentes!$J$13 -> 0 | E70: =IF(Tecno!E70<>"",Tecno!E70,"") ->  | F70: =Tecno!F70 -> 0 | H70: =IF(Tecno!H70<>"",Tecno!H70,"") ->  | I70: =Componentes!$J$28*C70 -> 0 | J70: =D70+G70+I70 -> 0
A71: Demais Manutenções | J71: =SUM(J67:J70)+Componentes!$H$4 -> 246.41
A73: Controle formiga manutenção | B73: =Tecno!B73 -> 1.4 | C73: =Tecno!C73 -> 0 | D73: =B73*Componentes!$J$12+C73*Componentes!$J$13 -> 19.95 | E73: =IF(Tecno!E73<>"",Tecno!E73,"") -> Formicida granulado | F73: =Tecno!F73 -> 0.6 | G73: =F73*Componentes!$E$55 -> 26.46 | H73: =IF(Tecno!H73<>"",Tecno!H73,"") ->  | J73: =D73+G73+I73 -> 46.41
A74: Patrolamento Aceiro | D74: =B74*Componentes!$J$12+C74*Componentes!$J$13 -> 0 | E74: =IF(Tecno!E74<>"",Tecno!E74,"") ->  | F74: =Tecno!F74 -> 0 | H74: =IF(Tecno!H74<>"",Tecno!H74,"") ->  | I74: =Componentes!$J$28*C74 -> 0 | J74: =D74+G74+I74 -> 0
J75: =SUM(J73:J74)+Componentes!$H$4 -> 246.41
A76: TERCEIRA ROTAÇÃO | D76: Volume aos 7 anos (m3): | E76: 120.3445023
A77: Primeira Manutenção | B77: Mão-de-Obra | E77: Insumo | H77: Máquinas
B78: Braçal | C78: Tratorista | D78: Custo | E78: Produto | F78: Quantidade | G78: Custo | H78: Equipamento | I78: Custo | J78: Custo Total
A79: Controle Químico Linha | B79: =Tecno!B79 -> 6 | C79: =Tecno!C79 -> 0 | D79: =B79*Componentes!$J$12+C79*Componentes!$J$13 -> 85.5 | E79: =IF(Tecno!E79<>"",Tecno!E79,"") -> Round up | F79: =Tecno!F79 -> 0.94 | G79: =F79*Componentes!$E$56 -> 63.779 | H79: =IF(Tecno!H79<>"",Tecno!H79,"") ->  | J79: =D79+G79+I79 -> 149.279
A80: Controle Químico Entrelinha | D80: =B80*Componentes!$J$12+C80*Componentes!$J$13 -> 0 | G80: =F80*Componentes!$E$56 -> 0 | I80: =Componentes!$J$31*C80 -> 0 | J80: =D80+G80+I80 -> 0
A81: Controle de formigas | B81: =Tecno!B81 -> 1.8 | C81: =Tecno!C81 -> 0 | D81: =B81*Componentes!$J$12+C81*Componentes!$J$13 -> 25.65 | E81: =IF(Tecno!E81<>"",Tecno!E81,"") -> Formicida granulado | F81: =Tecno!F81 -> 0.7 | G81: =F81*Componentes!$E$55 -> 30.87 | H81: =IF(Tecno!H81<>"",Tecno!H81,"") ->  | J81: =D81+G81+I81 -> 56.52
A82: Adubação de Manutenção | B82: =Tecno!B82 -> 0.1 | C82: =Tecno!C82 -> 0.42 | D82: =B82*Componentes!$J$12+C82*Componentes!$J$13 -> 5.510324232 | E82: =IF(Tecno!E82<>"",Tecno!E82,"") -> NPK-8:5:18 líquido | F82: 250 | G82: =F82*Componentes!$E$53/1000 -> 250 | H82: =IF(Tecno!H82<>"",Tecno!H82,"") -> Trator Médio + Tanque pulverizador com 2 mangueiras | I82: =Componentes!$J$31*C82 -> 18.45375 | J82: =D82+G82+I82 -> 273.9640742
A83: Patrolamento Aceiro | B83: =Tecno!B83 -> 0 | C83: =Tecno!C83/2 -> 0 | D83: =B83*Componentes!$J$12+C83*Componentes!$J$13 -> 0 | E83: =IF(Tecno!E83<>"",Tecno!E83,"") ->  | F83: =Tecno!F83 -> 0 | H83: =IF(Tecno!H83<>"",Tecno!H83,"") ->  | I83: =Componentes!$J$28*C83 -> 0 | J83: =D83+G83+I83 -> 0
A84: Segunda Manutenção | J84: =SUM(J79:J83)+Componentes!$H$4 -> 679.7630742
A86: Controle Químico Entrelinha | B86: =Tecno!B86 -> 0 | C86: =Tecno!C86 -> 0 | D86: =B86*Componentes!$J$12+C86*Componentes!$J$13 -> 0 | E86: =IF(Tecno!E86<>"",Tecno!E86,"") ->  | F86: =Tecno!F86 -> 0 | G86: =F86*Componentes!$E$56 -> 0 | H86: =IF(Tecno!H86<>"",Tecno!H86,"") ->  | I86: =Componentes!$J$31*C86 -> 0 | J86: =D86+G86+I86 -> 0
A87: Fosfatagem | B87: =Tecno!B87 -> 0.66 | C87: =Tecno!C87 -> 1.02 | D87: =B87*Componentes!$J$12+C87*Componentes!$J$13 -> 19.32650171 | E87: =IF(Tecno!E87<>"",Tecno!E87,"") -> Superfosfato Simples | F87: 250 | G87: =Componentes!$E$50/1000*F87 -> 205.975 | H87: =IF(Tecno!H87<>"",Tecno!H87,"") -> MF 290 + Aplicador Adubo Granulado | I87: =Componentes!$J$37*C87 -> 73.12125 | J87: =D87+G87+I87 -> 298.4227517
A88: Desbrota | B88: =Tecno!B88/2 -> 6 | C88: =Tecno!C88 -> 0 | D88: =B88*Componentes!$J$12+C88*Componentes!$J$13 -> 85.5 | E88: =IF(Tecno!E88<>"",Tecno!E88,"") ->  | F88: =Tecno!F88 -> 0 | H88: =IF(Tecno!H88<>"",Tecno!H88,"") -> Motoroçadeira | I88: =Componentes!J23*B88 -> 21.3675 | J88: =D88+G88+I88 -> 106.8675
A89: Roçada Manual Linha | B89: =Tecno!B89 -> 4 | C89: =Tecno!C89 -> 0 | D89: =B89*Componentes!$J$12+C89*Componentes!$J$13 -> 57 | E89: =IF(Tecno!E89<>"",Tecno!E89,"") ->  | F89: =Tecno!F89 -> 0 | H89: =IF(Tecno!H89<>"",Tecno!H89,"") ->  | J89: =D89+G89+I89 -> 57
A90: Patrolamento Aceiro | B90: =Tecno!B90 -> 0 | C90: =Tecno!C90/2 -> 0 | D90: =B90*Componentes!$J$12+C90*Componentes!$J$13 -> 0 | E90: =IF(Tecno!E90<>"",Tecno!E90,"") ->  | F90: =Tecno!F90 -> 0 | H90: =IF(Tecno!H90<>"",Tecno!H90,"") ->  | I90: =Componentes!$J$28*C90 -> 0 | J90: =D90+G90+I90 -> 0
A91: Terceira Manutenção | J91: =SUM(J86:J90)+Componentes!$H$4 -> 662.2902517
A93: Controle Químico Entrelinha | B93: =Tecno!B93 -> 0 | C93: =Tecno!C93 -> 0 | D93: =B93*Componentes!$J$12+C93*Componentes!$J$13 -> 0 | E93: =IF(Tecno!E93<>"",Tecno!E93,"") ->  | F93: =Tecno!F93 -> 0 | G93: =F93*Componentes!$E$56 -> 0 | H93: =IF(Tecno!H93<>"",Tecno!H93,"") ->  | I93: =Componentes!$J$31*C93 -> 0 | J93: =D93+G93+I93 -> 0
A94: Adubação de Manutenção | B94: =Tecno!B94 -> 0 | C94: =Tecno!C94 -> 0 | D94: =B94*Componentes!$J$12+C94*Componentes!$J$13 -> 0 | E94: =IF(Tecno!E94<>"",Tecno!E94,"") ->  | F94: 250 | H94: =IF(Tecno!H94<>"",Tecno!H94,"") ->  | I94: =Componentes!$J$31*C94 -> 0 | J94: =D94+G94+I94 -> 0
A95: Controle formiga manutenção | B95: =Tecno!B95 -> 1.4 | C95: =Tecno!C95 -> 0 | D95: =B95*Componentes!$J$12+C95*Componentes!$J$13 -> 19.95 | E95: =IF(Tecno!E95<>"",Tecno!E95,"") -> Formicida granulado | F95: =Tecno!F95 -> 0.6 | G95: =F95*Componentes!$E$55 -> 26.46 | H95: =IF(Tecno!H95<>"",Tecno!H95,"") ->  | J95: =D95+G95+I95 -> 46.41
A96: Patrolamento Aceiro | B96: =Tecno!B96 -> 0 | C96: =Tecno!C96/2 -> 0 | D96: =B96*Componentes!$J$12+C96*Componentes!$J$13 -> 0 | E96: =IF(Tecno!E96<>"",Tecno!E96,"") ->  | F96: =Tecno!F96 -> 0 | H96: =IF(Tecno!H96<>"",Tecno!H96,"") ->  | I96: =Componentes!$J$28*C96 -> 0 | J96: =D96+G96+I96 -> 0
A97: Demais Manutenções | J97: =SUM(J93:J96)+Componentes!$H$4 -> 246.41
A99: Controle formiga manutenção | B99: =Tecno!B99 -> 1.4 | C99: =Tecno!C99 -> 0 | D99: =B99*Componentes!$J$12+C99*Componentes!$J$13 -> 19.95 | E99: =IF(Tecno!E99<>"",Tecno!E99,"") -> Formicida granulado | F99: =Tecno!F99 -> 0.6 | G99: =F99*Componentes!$E$55 -> 26.46 | H99: =IF(Tecno!H99<>"",Tecno!H99,"") ->  | J99: =D99+G99+I99 -> 46.41
A100: Patrolamento Aceiro | D100: =B100*Componentes!$J$12+C100*Componentes!$J$13 -> 0 | E100: =IF(Tecno!E100<>"",Tecno!E100,"") ->  | F100: =Tecno!F100 -> 0 | H100: =IF(Tecno!H100<>"",Tecno!H100,"") ->  | I100: =Componentes!$J$28*C100 -> 0 | J100: =D100+G100+I100 -> 0
J101: =SUM(J99:J100)+Componentes!$H$4 -> 246.41

Sheet EucMadSol
A1: Detalhamento dos Custos das Operações - Eucalipto p/ Madeira Sólida
A2: (Rendimento técnico da MDO em homem-hora/hectare)
A3: (Para MDO, considerou-se apenas MDO tipo braçal e tratorista)
A4: (Rendimento técnico do equipamento em hora-máquina/hectare)
A5: (Custo total da operação em $/hectare)
A7: PRIMEIRA ROTAÇÃO
A8: Plantio | B8: Mão-de-Obra | E8: Insumo | H8: Máquinas
B9: Braçal | C9: Tratorista | D9: Custo | E9: Produto | F9: Quantidade | G9: Custo | H9: Equipamento | I9: Custo | J9: Custo Total
A10: Conservação do Solo | B10: =Tecno!B10 -> 0 | C10: =Tecno!C10 -> 0 | D10: =B10*Componentes!$J$12+C10*Componentes!$J$13 -> 0 | E10: =IF(Tecno!E10<>"",Tecno!E10,"") ->  | F10: =Tecno!F10 -> 0 | H10: =IF(Tecno!H10<>"",Tecno!H10,"") ->  | I10: =Componentes!J29*C10 -> 0 | J10: =D10+G10+I10 -> 0
A11: Construção de Aceiros | B11: =Tecno!B11 -> 0 | C11: =Tecno!C11 -> 0 | D11: =B11*Componentes!$J$12+C11*Componentes!$J$13 -> 0 | E11: =IF(Tecno!E11<>"",Tecno!E11,"") ->  | F11: =Tecno!F11 -> 0 | H11: =IF(Tecno!H11<>"",Tecno!H11,"") ->  | I11: =Componentes!J29*C11 -> 0 | J11: =D11+G11+I11 -> 0
A12: Calagem | B12: =Tecno!B12 -> 1.2 | C12: =Tecno!C12 -> 1.2 | D12: =B12*Componentes!$J$12+C12*Componentes!$J$13 -> 28.77235495 | E12: =IF(Tecno!E12<>"",Tecno!E12,"") -> Calcário dolomítico | F12: =Tecno!F12 -> 4 | G12: =F12*Componentes!E47 -> 340 | H12: =IF(Tecno!H12<>"",Tecno!H12,"") -> MF 290 + Aplicador calcário | I12: =Componentes!J36*C12 -> 83.25 | J12: =D12+G12+I12 -> 452.0223549
A13: Combate a formiga 1 | B13: =Tecno!B13 -> 2.32 | C13: =Tecno!C13 -> 0 | D13: =B13*Componentes!$J$12+C13*Componentes!$J$13 -> 33.06 | E13: =IF(Tecno!E13<>"",Tecno!E13,"") -> Formicida granulado | F13: =Tecno!F13 -> 1.5 | G13: =F13*Componentes!$E$55 -> 66.15 | H13: =IF(Tecno!H13<>"",Tecno!H13,"") ->  | J13: 99.21
A14: Combate a formiga 2 | B14: =Tecno!B14 -> 0 | C14: =Tecno!C14 -> 0 | D14: =B14*Componentes!$J$12+C14*Componentes!$J$13 -> 0 | E14: =IF(Tecno!E14<>"",Tecno!E14,"") ->  | F14: =Tecno!F14 -> 0 | G14: =F14*Componentes!$E$55 -> 0 | H14: =IF(Tecno!H14<>"",Tecno!H14,"") ->  | J14: 0
A15: Combate a formiga 3 | B15: =Tecno!B15 -> 0 | C15: =Tecno!C15 -> 0 | D15: =B15*Componentes!$J$12+C15*Componentes!$J$13 -> 0 | E15: =IF(Tecno!E15<>"",Tecno!E15,"") ->  | F15: =Tecno!F15 -> 0 | G15: =F15*Componentes!$E$55 -> 0 | H15: =IF(Tecno!H15<>"",Tecno!H15,"") ->  | J15: 0
A16: Controle Químico Mec. Total | B16: =Tecno!B16 -> 0 | C16: =Tecno!C16 -> 0 | D16: =B16*Componentes!$J$12+C16*Componentes!$J$13 -> 0 | E16: =IF(Tecno!E16<>"",Tecno!E16,"") ->  | F16: =Tecno!F16 -> 0 | G16: =F16*Componentes!$E$56 -> 0 | H16: =IF(Tecno!H16<>"",Tecno!H16,"") ->  | I16: =Componentes!$J$31*C16 -> 0 | J16: 0
A17: Subsolagem | B17: =Tecno!B17 -> 0 | C17: =Tecno!C17 -> 0 | D17: =B17*Componentes!$J$12+C17*Componentes!$J$13 -> 0 | E17: =IF(Tecno!E17<>"",Tecno!E17,"") ->  | F17: =Tecno!F17 -> 0 | H17: =IF(Tecno!H17<>"",Tecno!H17,"") ->  | I17: =Componentes!J40*C17 -> 0 | J17: 0
A18: Coveamento | B18: =Tecno!B18 -> 16 | C18: =Tecno!C18 -> 0 | D18: =B18*Componentes!$J$12+C18*Componentes!$J$13 -> 228 | E18: =IF(Tecno!E18<>"",Tecno!E18,"") ->  | F18: =Tecno!F18 -> 0 | H18: =IF(Tecno!H18<>"",Tecno!H18,"") ->  | J18: 228
A19: Adubação | B19: =Tecno!B19 -> 1.2 | C19: =Tecno!C19 -> 1.2 | D19: =B19*Componentes!$J$12+C19*Componentes!$J$13 -> 28.77235495 | E19: =IF(Tecno!E19<>"",Tecno!E19,"") -> NPK-6:30:6 | F19: =(Tecno!F19)*1.3 -> 260 | G19: =F19*Componentes!$E$52/1000 -> 260 | H19: =IF(Tecno!H19<>"",Tecno!H19,"") -> MF 290 + Aplicador Adubo Granulado | I19: =Componentes!J37*C19 -> 86.025 | J19: 374.7973549
A20: Plantio | B20: =Tecno!B20 -> 12 | C20: =Tecno!C20 -> 3 | D20: =B20*Componentes!$J$12+C20*Componentes!$J$13 -> 200.1808874 | E20: =IF(Tecno!E20<>"",Tecno!E20,"") -> Mudas | F20: 833 | G20: =F20*Componentes!E46/1000 -> 291.55 | H20: =IF(Tecno!H20<>"",Tecno!H20,"") -> Valmet 880 + carreta | I20: =Componentes!J39*C20 -> 155.4 | J20: =D20+G20+I20 -> 647.1308874
A21: Irrigação | B21: =Tecno!B21 -> 0 | C21: =Tecno!C21 -> 0 | D21: =B21*Componentes!$J$12+C21*Componentes!$J$13 -> 0 | E21: =IF(Tecno!E21<>"",Tecno!E21,"") ->  | F21: =Tecno!F21 -> 0 | H21: =IF(Tecno!H21<>"",Tecno!H21,"") ->  | I21: =1.31*Componentes!J31 -> 57.558125 | J21: =D21+G21+I21 -> 57.558125
A22: Levantamento Sobrevivência | B22: =Tecno!B22 -> 0 | C22: =Tecno!C22 -> 0 | D22: =B22*Componentes!$J$12+C22*Componentes!$J$13 -> 0 | E22: =IF(Tecno!E22<>"",Tecno!E22,"") ->  | F22: =Tecno!F22 -> 0 | H22: =IF(Tecno!H22<>"",Tecno!H22,"") ->  | J22: =D22+G22+I22 -> 0
A23: Replantio | B23: =Tecno!B23 -> 0 | C23: =Tecno!C23 -> 0 | D23: =B23*Componentes!$J$12+C23*Componentes!$J$13 -> 0 | E23: =IF(Tecno!E23<>"",Tecno!E23,"") ->  | F23: =Tecno!F23 -> 0 | H23: =IF(Tecno!H23<>"",Tecno!H23,"") ->  | I23: =Componentes!J39*C23 -> 0 | J23: =D23+G23+I23 -> 0
A24: Adubação cobertura | B24: =Tecno!B24 -> 0 | C24: =Tecno!C24 -> 0 | D24: =B24*Componentes!$J$12+C24*Componentes!$J$13 -> 0 | E24: =IF(Tecno!E24<>"",Tecno!E24,"") ->  | F24: =Tecno!F24 -> 0 | G24: =F24*Componentes!E54/1000 -> 0 | H24: =IF(Tecno!H24<>"",Tecno!H24,"") ->  | I24: =Componentes!J37*C24 -> 0 | J24: =D24+G24+I24 -> 0
A25: Primeira Manutenção | J25: =SUM(J10:J24)+Componentes!$H$4 -> 2058.718722
A27: Conservação do Solo | B27: =Tecno!B27 -> 0 | C27: =Tecno!C27 -> 0 | D27: =B27*Componentes!$J$12+C27*Componentes!$J$13 -> 0 | E27: =IF(Tecno!E27<>"",Tecno!E27,"") ->  | F27: =Tecno!F27 -> 0 | H27: =IF(Tecno!H27<>"",Tecno!H27,"") ->  | I27: =Componentes!$J$29*C27 -> 0 | J27: =D27+G27+I27 -> 0
A28: Controle Químico Linha | B28: =Tecno!B28 -> 6 | C28: =Tecno!C28 -> 0 | D28: =B28*Componentes!$J$12+C28*Componentes!$J$13 -> 85.5 | E28: =IF(Tecno!E28<>"",Tecno!E28,"") -> Round up | F28: =Tecno!F28 -> 0.94 | G28: =F28*Componentes!$E$56 -> 63.779 | H28: =IF(Tecno!H28<>"",Tecno!H28,"") -> Pulverizador costal motorizado | I28: =Componentes!J23*B28 -> 21.3675 | J28: 170.6465
A29: Controle Químico Entrelinha | B29: =Tecno!B29 -> 0 | C29: =Tecno!C29 -> 0 | D29: =B29*Componentes!$J$12+C29*Componentes!$J$13 -> 0 | E29: =IF(Tecno!E29<>"",Tecno!E29,"") ->  | F29: =Tecno!F29 -> 0 | G29: =F29*Componentes!$E$56 -> 0 | H29: =IF(Tecno!H29<>"",Tecno!H29,"") ->  | I29: =Componentes!$J$31*C29 -> 0 | J29: 0
A30: Controle de formigas | B30: =Tecno!B30 -> 1.8 | C30: =Tecno!C30 -> 0 | D30: =B30*Componentes!$J$12+C30*Componentes!$J$13 -> 25.65 | E30: =IF(Tecno!E30<>"",Tecno!E30,"") -> Formicida granulado | F30: =Tecno!F30 -> 0.7 | G30: =F30*Componentes!$E$55 -> 30.87 | H30: =IF(Tecno!H30<>"",Tecno!H30,"") -> Caminhão + Carreta 4 ton. | J30: 56.52
A31: Adubação de reforço manual | H31: =IF(Tecno!H31<>"",Tecno!H31,"") ->  | J31: 0
A32: Manutenção de Aceiros | B32: =Tecno!B32 -> 0 | C32: =Tecno!C32 -> 0 | D32: =B32*Componentes!$J$12+C32*Componentes!$J$13 -> 0 | E32: =IF(Tecno!E32<>"",Tecno!E32,"") ->  | F32: =Tecno!F32 -> 0 | H32: =IF(Tecno!H32<>"",Tecno!H32,"") ->  | I32: =Componentes!$J$29*C32 -> 0 | J32: 0
A33: Segunda Manutenção | J33: =SUM(J27:J32)+Componentes!$H$4 -> 427.1665
A35: Controle Químico Entrelinha | B35: =Tecno!B35 -> 0 | C35: =Tecno!C35 -> 0 | D35: =B35*Componentes!$J$12+C35*Componentes!$J$13 -> 0 | E35: =IF(Tecno!E35<>"",Tecno!E35,"") ->  | F35: =Tecno!F35 -> 0 | G35: =F35*Componentes!$E$56 -> 0 | H35: =IF(Tecno!H35<>"",Tecno!H35,"") ->  | I35: =Componentes!$J$31*C35 -> 0 | J35: =D35+G35+I35 -> 0
A36: Fosfatagem | J36: =D36+G36+I36 -> 0
A37: Roçada Manual Linha | B37: =Tecno!B37 -> 8 | C37: =Tecno!C37 -> 0 | D37: =B37*Componentes!$J$12+C37*Componentes!$J$13 -> 114 | E37: =IF(Tecno!E37<>"",Tecno!E37,"") ->  | F37: =Tecno!F37 -> 0 | H37: =IF(Tecno!H37<>"",Tecno!H37,"") ->  | J37: =D37+G37+I37 -> 114
A38: Patrolamento Aceiro | B38: =Tecno!B38 -> 0 | C38: =Tecno!C38 -> 0 | D38: =B38*Componentes!$J$12+C38*Componentes!$J$13 -> 0 | E38: =IF(Tecno!E38<>"",Tecno!E38,"") ->  | F38: =Tecno!F38 -> 0 | H38: =IF(Tecno!H38<>"",Tecno!H38,"") ->  | I38: =Componentes!$J$28*C38 -> 0 | J38: =D38+G38+I38 -> 0
A39: Terceira Manutenção | J39: =SUM(J35:J38)+Componentes!$H$4 -> 314
A41: Controle Químico Entrelinha | B41: =Tecno!B41 -> 0 | C41: =Tecno!C41 -> 0 | D41: =B41*Componentes!$J$12+C41*Componentes!$J$13 -> 0 | E41: =IF(Tecno!E41<>"",Tecno!E41,"") ->  | F41: =Tecno!F41 -> 0 | G41: =F41*Componentes!$E$56 -> 0 | H41: =IF(Tecno!H41<>"",Tecno!H41,"") ->  | I41: =Componentes!$J$31*C41 -> 0 | J41: =D41+G41+I41 -> 0
A42: Adubação de Manutenção | J42: =D42+G42+I42 -> 0
A43: Controle formiga manutenção | B43: =Tecno!B43 -> 1.4 | C43: =Tecno!C43 -> 0 | D43: =B43*Componentes!$J$12+C43*Componentes!$J$13 -> 19.95 | E43: =IF(Tecno!E43<>"",Tecno!E43,"") -> Formicida granulado | F43: =Tecno!F43 -> 0.6 | G43: =F43*Componentes!$E$55 -> 26.46 | H43: =IF(Tecno!H43<>"",Tecno!H43,"") ->  | J43: =D43+G43+I43 -> 46.41
A44: Patrolamento Aceiro | B44: =Tecno!B44 -> 0 | C44: =Tecno!C44 -> 0 | D44: =B44*Componentes!$J$12+C44*Componentes!$J$13 -> 0 | E44: =IF(Tecno!E44<>"",Tecno!E44,"") ->  | F44: =Tecno!F44 -> 0 | H44: =IF(Tecno!H44<>"",Tecno!H44,"") ->  | I44: =Componentes!$J$28*C44 -> 0 | J44: =D44+G44+I44 -> 0
A45: Demais Manutenções | J45: =SUM(J41:J44)+Componentes!$H$4 -> 246.41
A47: Controle formiga manutenção | B47: =Tecno!B47 -> 1.4 | C47: =Tecno!C47 -> 0 | D47: =B47*Componentes!$J$12+C47*Componentes!$J$13 -> 19.95 | E47: =IF(Tecno!E47<>"",Tecno!E47,"") -> Formicida granulado | F47: =Tecno!F47 -> 0.6 | G47: =F47*Componentes!$E$55 -> 26.46 | H47: =IF(Tecno!H47<>"",Tecno!H47,"") ->  | J47: =D47+G47+I47 -> 46.41
A48: Patrolamento Aceiro | B48: =Tecno!B48 -> 0 | C48: =Tecno!C48 -> 0 | D48: =B48*Componentes!$J$12+C48*Componentes!$J$13 -> 0 | E48: =IF(Tecno!E48<>"",Tecno!E48,"") ->  | F48: =Tecno!F48 -> 0 | H48: =IF(Tecno!H48<>"",Tecno!H48,"") ->  | I48: =Componentes!$J$28*C48 -> 0 | J48: =D48+G48+I48 -> 0
J49: =SUM(J47:J48)+Componentes!$H$4 -> 246.41
A50: Primeiro Desbaste
B51: Ano: | C51: 4
A52: Marcação | B52: =Tecno!$B$62 -> 12 | D52: =B52*Componentes!$J$12 -> 171 | J52: =D52+G52+I52 -> 171
A53: Desrama | B53: =Tecno!$B$62 -> 12 | D53: =B53*Componentes!$J$12 -> 171 | H53: =IF(Tecno!H53<>"",Tecno!H53,"") ->  | J53: =D53+G53+I53 -> 171
J54: =SUM(J52:J53) -> 342
A55: Segundo Desbaste
B56: Ano: | C56: 8
A57: Marcação | B57: =Tecno!$B$62*1.2 -> 14.4 | D57: =B57*Componentes!$J$12 -> 205.2 | J57: =D57+G57+I57 -> 205.2
A58: Desrama | B58: =Tecno!$B$62*1.2 -> 14.4 | D58: =B58*Componentes!$J$12 -> 205.2 | H58: =IF(Tecno!H58<>"",Tecno!H58,"") ->  | J58: =D58+G58+I58 -> 205.2
J59: =SUM(J57:J58) -> 410.4
A60: Corte Raso
B61: Ano: | C61: 15
A62: Patrolamento Estradas | C62: =Tecno!C48 -> 0 | D62: =(C62*Componentes!J13)*4 -> 0 | H62: =Tecno!H48 -> 0 | J62: =D62+G62+I62 -> 0
J63: =SUM(J62) -> 0

Sheet PinPol
A1: Detalhamento dos Custos das Operações - Pinus p/ Polpa
A2: (Rendimento técnico da MDO em homem-hora/hectare)
A3: (Para MDO, considerou-se apenas MDO tipo braçal e tratorista)
A4: (Rendimento técnico do equipamento em hora-máquina/hectare)
A5: (Custo total da operação em $/hectare)
A7: PRIMEIRA ROTAÇÃO
A8: Plantio | B8: Mão-de-Obra | E8: Insumo | H8: Máquinas
B9: Braçal | C9: Tratorista | D9: Custo | E9: Produto | F9: Quantidade | G9: Custo | H9: Equipamento | I9: Custo | J9: Custo Total
A10: Conservação do Solo | B10: =Tecno!B10 -> 0 | C10: =Tecno!C10 -> 0 | D10: =B10*Componentes!$J$12+C10*Componentes!$J$13 -> 0 | E10: =IF(Tecno!E10<>"",Tecno!E10,"") ->  | F10: =Tecno!F10 -> 0 | H10: =IF(Tecno!H10<>"",Tecno!H10,"") ->  | I10: =Componentes!J29*C10 -> 0 | J10: =D10+G10+I10 -> 0
A11: Construção de Aceiros | B11: =Tecno!B11 -> 0 | C11: =Tecno!C11 -> 0 | D11: =B11*Componentes!$J$12+C11*Componentes!$J$13 -> 0 | E11: =IF(Tecno!E11<>"",Tecno!E11,"") ->  | F11: =Tecno!F11 -> 0 | H11: =IF(Tecno!H11<>"",Tecno!H11,"") ->  | I11: =Componentes!J29*C11 -> 0 | J11: =D11+G11+I11 -> 0
A12: Calagem | B12: =Tecno!B12 -> 1.2 | C12: =Tecno!C12 -> 1.2 | D12: =B12*Componentes!$J$12+C12*Componentes!$J$13 -> 28.77235495 | E12: =IF(Tecno!E12<>"",Tecno!E12,"") -> Calcário dolomítico | F12: =Tecno!F12 -> 4 | G12: =F12*Componentes!E47 -> 340 | H12: =IF(Tecno!H12<>"",Tecno!H12,"") -> MF 290 + Aplicador calcário | I12: =Componentes!J36*C12 -> 83.25 | J12: =D12+G12+I12 -> 452.0223549
A13: Combate a formiga 1 | B13: =Tecno!B13 -> 2.32 | C13: =Tecno!C13 -> 0 | D13: =B13*Componentes!$J$12+C13*Componentes!$J$13 -> 33.06 | E13: =IF(Tecno!E13<>"",Tecno!E13,"") -> Formicida granulado | F13: =Tecno!F13 -> 1.5 | G13: =F13*Componentes!$E$55 -> 66.15 | H13: =IF(Tecno!H13<>"",Tecno!H13,"") ->  | J13: 99.21
A14: Combate a formiga 2 | B14: =Tecno!B14 -> 0 | C14: =Tecno!C14 -> 0 | D14: =B14*Componentes!$J$12+C14*Componentes!$J$13 -> 0 | E14: =IF(Tecno!E14<>"",Tecno!E14,"") ->  | F14: =Tecno!F14 -> 0 | G14: =F14*Componentes!$E$55 -> 0 | H14: =IF(Tecno!H14<>"",Tecno!H14,"") ->  | J14: 0
A15: Combate a formiga 3 | B15: =Tecno!B15 -> 0 | C15: =Tecno!C15 -> 0 | D15: =B15*Componentes!$J$12+C15*Componentes!$J$13 -> 0 | E15: =IF(Tecno!E15<>"",Tecno!E15,"") ->  | F15: =Tecno!F15 -> 0 | G15: =F15*Componentes!$E$55 -> 0 | H15: =IF(Tecno!H15<>"",Tecno!H15,"") ->  | J15: 0
A16: Controle Químico Mec. Total | B16: =Tecno!B16 -> 0 | C16: =Tecno!C16 -> 0 | D16: =B16*Componentes!$J$12+C16*Componentes!$J$13 -> 0 | E16: =IF(Tecno!E16<>"",Tecno!E16,"") ->  | F16: =Tecno!F16 -> 0 | G16: =F16*Componentes!$E$56 -> 0 | H16: =IF(Tecno!H16<>"",Tecno!H16,"") ->  | I16: =Componentes!$J$31*C16 -> 0 | J16: 0
A17: Subsolagem | B17: =Tecno!B17 -> 0 | C17: =Tecno!C17 -> 0 | D17: =B17*Componentes!$J$12+C17*Componentes!$J$13 -> 0 | E17: =IF(Tecno!E17<>"",Tecno!E17,"") ->  | F17: =Tecno!F17 -> 0 | H17: =IF(Tecno!H17<>"",Tecno!H17,"") ->  | I17: =Componentes!J40*C17 -> 0 | J17: 0
A18: Coveamento | B18: =Tecno!B18 -> 16 | C18: =Tecno!C18 -> 0 | D18: =B18*Componentes!$J$12+C18*Componentes!$J$13 -> 228 | E18: =IF(Tecno!E18<>"",Tecno!E18,"") ->  | F18: =Tecno!F18 -> 0 | H18: =IF(Tecno!H18<>"",Tecno!H18,"") ->  | J18: 228
A19: Adubação | B19: =Tecno!B19 -> 1.2 | C19: =Tecno!C19 -> 1.2 | D19: =B19*Componentes!$J$12+C19*Componentes!$J$13 -> 28.77235495 | E19: =IF(Tecno!E19<>"",Tecno!E19,"") -> NPK-6:30:6 | F19: =Tecno!F19 -> 200 | G19: =F19*Componentes!$E$52/1000 -> 200 | H19: =IF(Tecno!H19<>"",Tecno!H19,"") -> MF 290 + Aplicador Adubo Granulado | I19: =Componentes!J37*C19 -> 86.025 | J19: 314.7973549
A20: Plantio | B20: =Tecno!B20 -> 12 | C20: =Tecno!C20 -> 3 | D20: =B20*Componentes!$J$12+C20*Componentes!$J$13 -> 200.1808874 | E20: =IF(Tecno!E20<>"",Tecno!E20,"") -> Mudas | F20: 1111 | G20: =F20*Componentes!E46/1000 -> 388.85 | H20: =IF(Tecno!H20<>"",Tecno!H20,"") -> Valmet 880 + carreta | I20: =Componentes!J39*C20 -> 155.4 | J20: =D20+G20+I20 -> 744.4308874
A21: Irrigação | B21: =Tecno!B21 -> 0 | C21: =Tecno!C21 -> 0 | D21: =B21*Componentes!$J$12+C21*Componentes!$J$13 -> 0 | E21: =IF(Tecno!E21<>"",Tecno!E21,"") ->  | F21: =Tecno!F21 -> 0 | H21: =IF(Tecno!H21<>"",Tecno!H21,"") ->  | I21: =1.31*Componentes!J31 -> 57.558125 | J21: =D21+G21+I21 -> 57.558125
A22: Levantamento Sobrevivência | B22: =Tecno!B22 -> 0 | C22: =Tecno!C22 -> 0 | D22: =B22*Componentes!$J$12+C22*Componentes!$J$13 -> 0 | E22: =IF(Tecno!E22<>"",Tecno!E22,"") ->  | F22: =Tecno!F22 -> 0 | H22: =IF(Tecno!H22<>"",Tecno!H22,"") ->  | J22: =D22+G22+I22 -> 0
A23: Replantio | B23: =Tecno!B23 -> 0 | C23: =Tecno!C23 -> 0 | D23: =B23*Componentes!$J$12+C23*Componentes!$J$13 -> 0 | E23: =IF(Tecno!E23<>"",Tecno!E23,"") ->  | F23: =Tecno!F23 -> 0 | H23: =IF(Tecno!H23<>"",Tecno!H23,"") ->  | I23: =Componentes!J39*C23 -> 0 | J23: =D23+G23+I23 -> 0
A24: Adubação cobertura | J24: =D24+G24+I24 -> 0
A25: Primeira Manutenção | J25: =SUM(J10:J24)+Componentes!$H$4 -> 2096.018722
A27: Conservação do Solo | B27: =Tecno!B27 -> 0 | C27: =Tecno!C27 -> 0 | D27: =B27*Componentes!$J$12+C27*Componentes!$J$13 -> 0 | E27: =IF(Tecno!E27<>"",Tecno!E27,"") ->  | F27: =Tecno!F27 -> 0 | H27: =IF(Tecno!H27<>"",Tecno!H27,"") ->  | I27: =Componentes!$J$29*C27 -> 0 | J27: =D27+G27+I27 -> 0
A28: Controle Químico Linha | B28: =Tecno!B28 -> 6 | C28: =Tecno!C28 -> 0 | D28: =B28*Componentes!$J$12+C28*Componentes!$J$13 -> 85.5 | E28: =IF(Tecno!E28<>"",Tecno!E28,"") -> Round up | F28: =Tecno!F28 -> 0.94 | G28: =F28*Componentes!$E$56 -> 63.779 | H28: =IF(Tecno!H28<>"",Tecno!H28,"") -> Pulverizador costal motorizado | I28: =Componentes!J23*B28 -> 21.3675 | J28: 170.6465
A29: Controle Químico Entrelinha | B29: =Tecno!B29 -> 0 | C29: =Tecno!C29 -> 0 | D29: =B29*Componentes!$J$12+C29*Componentes!$J$13 -> 0 | E29: =IF(Tecno!E29<>"",Tecno!E29,"") ->  | F29: =Tecno!F29 -> 0 | G29: =F29*Componentes!$E$56 -> 0 | H29: =IF(Tecno!H29<>"",Tecno!H29,"") ->  | I29: =Componentes!$J$31*C29 -> 0 | J29: 0
A30: Controle de formigas | B30: =Tecno!B30 -> 1.8 | C30: =Tecno!C30 -> 0 | D30: =B30*Componentes!$J$12+C30*Componentes!$J$13 -> 25.65 | E30: =IF(Tecno!E30<>"",Tecno!E30,"") -> Formicida granulado | F30: =Tecno!F30 -> 0.7 | G30: =F30*Componentes!$E$55 -> 30.87 | H30: =IF(Tecno!H30<>"",Tecno!H30,"") -> Caminhão + Carreta 4 ton. | J30: 56.52
A31: Adubação de reforço manual | H31: =IF(Tecno!H31<>"",Tecno!H31,"") ->  | J31: 0
A32: Manutenção de Aceiros | B32: =Tecno!B32 -> 0 | C32: =Tecno!C32 -> 0 | D32: =B32*Componentes!$J$12+C32*Componentes!$J$13 -> 0 | E32: =IF(Tecno!E32<>"",Tecno!E32,"") ->  | F32: =Tecno!F32 -> 0 | H32: =IF(Tecno!H32<>"",Tecno!H32,"") ->  | I32: =Componentes!$J$29*C32 -> 0 | J32: 0
A33: Segunda Manutenção | J33: =SUM(J27:J32)+Componentes!$H$4 -> 427.1665
A35: Controle Químico Entrelinha | B35: =Tecno!B35 -> 0 | C35: =Tecno!C35 -> 0 | D35: =B35*Componentes!$J$12+C35*Componentes!$J$13 -> 0 | E35: =IF(Tecno!E35<>"",Tecno!E35,"") ->  | F35: =Tecno!F35 -> 0 | G35: =F35*Componentes!$E$56 -> 0 | H35: =IF(Tecno!H35<>"",Tecno!H35,"") ->  | I35: =Componentes!$J$31*C35 -> 0 | J35: =D35+G35+I35 -> 0
A36: Fosfatagem | J36: =D36+G36+I36 -> 0
A37: Roçada Manual Linha | B37: =Tecno!B37 -> 8 | C37: =Tecno!C37 -> 0 | D37: =B37*Componentes!$J$12+C37*Componentes!$J$13 -> 114 | E37: =IF(Tecno!E37<>"",Tecno!E37,"") ->  | F37: =Tecno!F37 -> 0 | H37: =IF(Tecno!H37<>"",Tecno!H37,"") ->  | J37: =D37+G37+I37 -> 114
A38: Patrolamento Aceiro | B38: =Tecno!B38 -> 0 | C38: =Tecno!C38 -> 0 | D38: =B38*Componentes!$J$12+C38*Componentes!$J$13 -> 0 | E38: =IF(Tecno!E38<>"",Tecno!E38,"") ->  | F38: =Tecno!F38 -> 0 | H38: =IF(Tecno!H38<>"",Tecno!H38,"") ->  | I38: =Componentes!$J$28*C38 -> 0 | J38: =D38+G38+I38 -> 0
A39: Terceira Manutenção | J39: =SUM(J35:J38)+Componentes!$H$4 -> 314
A41: Controle Químico Entrelinha | B41: =Tecno!B41 -> 0 | C41: =Tecno!C41 -> 0 | D41: =B41*Componentes!$J$12+C41*Componentes!$J$13 -> 0 | E41: =IF(Tecno!E41<>"",Tecno!E41,"") ->  | F41: =Tecno!F41 -> 0 | G41: =F41*Componentes!$E$56 -> 0 | H41: =IF(Tecno!H41<>"",Tecno!H41,"") ->  | I41: =Componentes!$J$31*C41 -> 0 | J41: =D41+G41+I41 -> 0
A42: Adubação de Manutenção | J42: =D42+G42+I42 -> 0
A43: Controle formiga manutenção | B43: =Tecno!B43 -> 1.4 | C43: =Tecno!C43 -> 0 | D43: =B43*Componentes!$J$12+C43*Componentes!$J$13 -> 19.95 | E43: =IF(Tecno!E43<>"",Tecno!E43,"") -> Formicida granulado | F43: =Tecno!F43 -> 0.6 | G43: =F43*Componentes!$E$55 -> 26.46 | H43: =IF(Tecno!H43<>"",Tecno!H43,"") ->  | J43: =D43+G43+I43 -> 46.41
A44: Patrolamento Aceiro | B44: =Tecno!B44 -> 0 | C44: =Tecno!C44 -> 0 | D44: =B44*Componentes!$J$12+C44*Componentes!$J$13 -> 0 | E44: =IF(Tecno!E44<>"",Tecno!E44,"") ->  | F44: =Tecno!F44 -> 0 | H44: =IF(Tecno!H44<>"",Tecno!H44,"") ->  | I44: =Componentes!$J$28*C44 -> 0 | J44: =D44+G44+I44 -> 0
A45: Demais Manutenções | J45: =SUM(J41:J44)+Componentes!$H$4 -> 246.41
A47: Controle formiga manutenção | B47: =Tecno!B47 -> 1.4 | C47: =Tecno!C47 -> 0 | D47: =B47*Componentes!$J$12+C47*Componentes!$J$13 -> 19.95 | E47: =IF(Tecno!E47<>"",Tecno!E47,"") -> Formicida granulado | F47: =Tecno!F47 -> 0.6 | G47: =F47*Componentes!$E$55 -> 26.46 | H47: =IF(Tecno!H47<>"",Tecno!H47,"") ->  | J47: =D47+G47+I47 -> 46.41
A48: Patrolamento Aceiro | B48: =Tecno!B48 -> 0 | C48: =Tecno!C48 -> 0 | D48: =B48*Componentes!$J$12+C48*Componentes!$J$13 -> 0 | E48: =IF(Tecno!E48<>"",Tecno!E48,"") ->  | F48: =Tecno!F48 -> 0 | H48: =IF(Tecno!H48<>"",Tecno!H48,"") ->  | I48: =Componentes!$J$28*C48 -> 0 | J48: =D48+G48+I48 -> 0
J49: =SUM(J47:J48)+Componentes!$H$4 -> 246.41

Sheet PinMadSol
A1: Detalhamento dos Custos das Operações - Pinus p/ Madeira Sólida
A2: (Rendimento técnico da MDO em homem-hora/hectare)
A3: (Para MDO, considerou-se apenas MDO tipo braçal e tratorista)
A4: (Rendimento técnico do equipamento em hora-máquina/hectare)
A5: (Custo total da operação em $/hectare)
A7: PRIMEIRA ROTAÇÃO
A8: Plantio | B8: Mão-de-Obra | E8: Insumo | H8: Máquinas
B9: Braçal | C9: Tratorista | D9: Custo | E9: Produto | F9: Quantidade | G9: Custo | H9: Equipamento | I9: Custo | J9: Custo Total
A10: Conservação do Solo | B10: =Tecno!B10 -> 0 | C10: =Tecno!C10 -> 0 | D10: =B10*Componentes!$J$12+C10*Componentes!$J$13 -> 0 | E10: =IF(Tecno!E10<>"",Tecno!E10,"") ->  | F10: =Tecno!F10 -> 0 | H10: =IF(Tecno!H10<>"",Tecno!H10,"") ->  | I10: =Componentes!J29*C10 -> 0 | J10: =D10+G10+I10 -> 0
A11: Construção de Aceiros | B11: =Tecno!B11 -> 0 | C11: =Tecno!C11 -> 0 | D11: =B11*Componentes!$J$12+C11*Componentes!$J$13 -> 0 | E11: =IF(Tecno!E11<>"",Tecno!E11,"") ->  | F11: =Tecno!F11 -> 0 | H11: =IF(Tecno!H11<>"",Tecno!H11,"") ->  | I11: =Componentes!J29*C11 -> 0 | J11: =D11+G11+I11 -> 0
A12: Calagem | B12: =Tecno!B12 -> 1.2 | C12: =Tecno!C12 -> 1.2 | D12: =B12*Componentes!$J$12+C12*Componentes!$J$13 -> 28.77235495 | E12: =IF(Tecno!E12<>"",Tecno!E12,"") -> Calcário dolomítico | F12: =Tecno!F12 -> 4 | G12: =F12*Componentes!E47 -> 340 | H12: =IF(Tecno!H12<>"",Tecno!H12,"") -> MF 290 + Aplicador calcário | I12: =Componentes!J36*C12 -> 83.25 | J12: =D12+G12+I12 -> 452.0223549
A13: Combate a formiga 1 | B13: =Tecno!B13 -> 2.32 | C13: =Tecno!C13 -> 0 | D13: =B13*Componentes!$J$12+C13*Componentes!$J$13 -> 33.06 | E13: =IF(Tecno!E13<>"",Tecno!E13,"") -> Formicida granulado | F13: =Tecno!F13 -> 1.5 | G13: =F13*Componentes!$E$55 -> 66.15 | H13: =IF(Tecno!H13<>"",Tecno!H13,"") ->  | J13: 99.21
A14: Combate a formiga 2 | B14: =Tecno!B14 -> 0 | C14: =Tecno!C14 -> 0 | D14: =B14*Componentes!$J$12+C14*Componentes!$J$13 -> 0 | E14: =IF(Tecno!E14<>"",Tecno!E14,"") ->  | F14: =Tecno!F14 -> 0 | G14: =F14*Componentes!$E$55 -> 0 | H14: =IF(Tecno!H14<>"",Tecno!H14,"") ->  | J14: 0
A15: Combate a formiga 3 | B15: =Tecno!B15 -> 0 | C15: =Tecno!C15 -> 0 | D15: =B15*Componentes!$J$12+C15*Componentes!$J$13 -> 0 | E15: =IF(Tecno!E15<>"",Tecno!E15,"") ->  | F15: =Tecno!F15 -> 0 | G15: =F15*Componentes!$E$55 -> 0 | H15: =IF(Tecno!H15<>"",Tecno!H15,"") ->  | J15: 0
A16: Controle Químico Mec. Total | B16: =Tecno!B16 -> 0 | C16: =Tecno!C16 -> 0 | D16: =B16*Componentes!$J$12+C16*Componentes!$J$13 -> 0 | E16: =IF(Tecno!E16<>"",Tecno!E16,"") ->  | F16: =Tecno!F16 -> 0 | G16: =F16*Componentes!$E$56 -> 0 | H16: =IF(Tecno!H16<>"",Tecno!H16,"") ->  | I16: =Componentes!$J$31*C16 -> 0 | J16: 0
A17: Subsolagem | B17: =Tecno!B17 -> 0 | C17: =Tecno!C17 -> 0 | D17: =B17*Componentes!$J$12+C17*Componentes!$J$13 -> 0 | E17: =IF(Tecno!E17<>"",Tecno!E17,"") ->  | F17: =Tecno!F17 -> 0 | H17: =IF(Tecno!H17<>"",Tecno!H17,"") ->  | I17: =Componentes!J40*C17 -> 0 | J17: 0
A18: Coveamento | B18: =Tecno!B18 -> 16 | C18: =Tecno!C18 -> 0 | D18: =B18*Componentes!$J$12+C18*Componentes!$J$13 -> 228 | E18: =IF(Tecno!E18<>"",Tecno!E18,"") ->  | F18: =Tecno!F18 -> 0 | H18: =IF(Tecno!H18<>"",Tecno!H18,"") ->  | J18: 228
A19: Adubação | B19: =Tecno!B19 -> 1.2 | C19: =Tecno!C19 -> 1.2 | D19: =B19*Componentes!$J$12+C19*Componentes!$J$13 -> 28.77235495 | E19: =IF(Tecno!E19<>"",Tecno!E19,"") -> NPK-6:30:6 | F19: =Tecno!F19 -> 200 | G19: =F19*Componentes!$E$52/1000 -> 200 | H19: =IF(Tecno!H19<>"",Tecno!H19,"") -> MF 290 + Aplicador Adubo Granulado | I19: =Componentes!J37*C19 -> 86.025 | J19: 314.7973549
A20: Plantio | B20: =Tecno!B20 -> 12 | C20: =Tecno!C20 -> 3 | D20: =B20*Componentes!$J$12+C20*Componentes!$J$13 -> 200.1808874 | E20: =IF(Tecno!E20<>"",Tecno!E20,"") -> Mudas | F20: 1111 | G20: =F20*Componentes!E46/1000 -> 388.85 | H20: =IF(Tecno!H20<>"",Tecno!H20,"") -> Valmet 880 + carreta | I20: =Componentes!J39*C20 -> 155.4 | J20: =D20+G20+I20 -> 744.4308874
A21: Irrigação | B21: =Tecno!B21 -> 0 | C21: =Tecno!C21 -> 0 | D21: =B21*Componentes!$J$12+C21*Componentes!$J$13 -> 0 | E21: =IF(Tecno!E21<>"",Tecno!E21,"") ->  | F21: =Tecno!F21 -> 0 | H21: =IF(Tecno!H21<>"",Tecno!H21,"") ->  | I21: =1.31*Componentes!J31 -> 57.558125 | J21: =D21+G21+I21 -> 57.558125
A22: Levantamento Sobrevivência | B22: =Tecno!B22 -> 0 | C22: =Tecno!C22 -> 0 | D22: =B22*Componentes!$J$12+C22*Componentes!$J$13 -> 0 | E22: =IF(Tecno!E22<>"",Tecno!E22,"") ->  | F22: =Tecno!F22 -> 0 | H22: =IF(Tecno!H22<>"",Tecno!H22,"") ->  | J22: =D22+G22+I22 -> 0
A23: Replantio | B23: =Tecno!B23 -> 0 | C23: =Tecno!C23 -> 0 | D23: =B23*Componentes!$J$12+C23*Componentes!$J$13 -> 0 | E23: =IF(Tecno!E23<>"",Tecno!E23,"") ->  | F23: =Tecno!F23 -> 0 | H23: =IF(Tecno!H23<>"",Tecno!H23,"") ->  | I23: =Componentes!J39*C23 -> 0 | J23: =D23+G23+I23 -> 0
A24: Adubação cobertura | J24: =D24+G24+I24 -> 0
A25: Primeira Manutenção | J25: =SUM(J10:J24)+Componentes!$H$4 -> 2096.018722
A27: Conservação do Solo | B27: =Tecno!B27 -> 0 | C27: =Tecno!C27 -> 0 | D27: =B27*Componentes!$J$12+C27*Componentes!$J$13 -> 0 | E27: =IF(Tecno!E27<>"",Tecno!E27,"") ->  | F27: =Tecno!F27 -> 0 | H27: =IF(Tecno!H27<>"",Tecno!H27,"") ->  | I27: =Componentes!$J$29*C27 -> 0 | J27: =D27+G27+I27 -> 0
A28: Controle Químico Linha | B28: =Tecno!B28 -> 6 | C28: =Tecno!C28 -> 0 | D28: =B28*Componentes!$J$12+C28*Componentes!$J$13 -> 85.5 | E28: =IF(Tecno!E28<>"",Tecno!E28,"") -> Round up | F28: =Tecno!F28 -> 0.94 | G28: =F28*Componentes!$E$56 -> 63.779 | H28: =IF(Tecno!H28<>"",Tecno!H28,"") -> Pulverizador costal motorizado | I28: =Componentes!J23*B28 -> 21.3675 | J28: 170.6465
A29: Controle Químico Entrelinha | B29: =Tecno!B29 -> 0 | C29: =Tecno!C29 -> 0 | D29: =B29*Componentes!$J$12+C29*Componentes!$J$13 -> 0 | E29: =IF(Tecno!E29<>"",Tecno!E29,"") ->  | F29: =Tecno!F29 -> 0 | G29: =F29*Componentes!$E$56 -> 0 | H29: =IF(Tecno!H29<>"",Tecno!H29,"") ->  | I29: =Componentes!$J$31*C29 -> 0 | J29: 0
A30: Controle de formigas | B30: =Tecno!B30 -> 1.8 | C30: =Tecno!C30 -> 0 | D30: =B30*Componentes!$J$12+C30*Componentes!$J$13 -> 25.65 | E30: =IF(Tecno!E30<>"",Tecno!E30,"") -> Formicida granulado | F30: =Tecno!F30 -> 0.7 | G30: =F30*Componentes!$E$55 -> 30.87 | H30: =IF(Tecno!H30<>"",Tecno!H30,"") -> Caminhão + Carreta 4 ton. | J30: 56.52
A31: Adubação de reforço manual | H31: =IF(Tecno!H31<>"",Tecno!H31,"") ->  | J31: 0
A32: Manutenção de Aceiros | B32: =Tecno!B32 -> 0 | C32: =Tecno!C32 -> 0 | D32: =B32*Componentes!$J$12+C32*Componentes!$J$13 -> 0 | E32: =IF(Tecno!E32<>"",Tecno!E32,"") ->  | F32: =Tecno!F32 -> 0 | H32: =IF(Tecno!H32<>"",Tecno!H32,"") ->  | I32: =Componentes!$J$29*C32 -> 0 | J32: 0
A33: Segunda Manutenção | J33: =SUM(J27:J32)+Componentes!$H$4 -> 427.1665
A35: Controle Químico Entrelinha | B35: =Tecno!B35 -> 0 | C35: =Tecno!C35 -> 0 | D35: =B35*Componentes!$J$12+C35*Componentes!$J$13 -> 0 | E35: =IF(Tecno!E35<>"",Tecno!E35,"") ->  | F35: =Tecno!F35 -> 0 | G35: =F35*Componentes!$E$56 -> 0 | H35: =IF(Tecno!H35<>"",Tecno!H35,"") ->  | I35: =Componentes!$J$31*C35 -> 0 | J35: =D35+G35+I35 -> 0
A36: Fosfatagem | J36: =D36+G36+I36 -> 0
A37: Roçada Manual Linha | B37: =Tecno!B37 -> 8 | C37: =Tecno!C37 -> 0 | D37: =B37*Componentes!$J$12+C37*Componentes!$J$13 -> 114 | E37: =IF(Tecno!E37<>"",Tecno!E37,"") ->  | F37: =Tecno!F37 -> 0 | H37: =IF(Tecno!H37<>"",Tecno!H37,"") ->  | J37: =D37+G37+I37 -> 114
A38: Patrolamento Aceiro | B38: =Tecno!B38 -> 0 | C38: =Tecno!C38 -> 0 | D38: =B38*Componentes!$J$12+C38*Componentes!$J$13 -> 0 | E38: =IF(Tecno!E38<>"",Tecno!E38,"") ->  | F38: =Tecno!F38 -> 0 | H38: =IF(Tecno!H38<>"",Tecno!H38,"") ->  | I38: =Componentes!$J$28*C38 -> 0 | J38: =D38+G38+I38 -> 0
A39: Terceira Manutenção | J39: =SUM(J35:J38)+Componentes!$H$4 -> 314
A41: Controle Químico Entrelinha | B41: =Tecno!B41 -> 0 | C41: =Tecno!C41 -> 0 | D41: =B41*Componentes!$J$12+C41*Componentes!$J$13 -> 0 | E41: =IF(Tecno!E41<>"",Tecno!E41,"") ->  | F41: =Tecno!F41 -> 0 | G41: =F41*Componentes!$E$56 -> 0 | H41: =IF(Tecno!H41<>"",Tecno!H41,"") ->  | I41: =Componentes!$J$31*C41 -> 0 | J41: =D41+G41+I41 -> 0
A42: Adubação de Manutenção | J42: =D42+G42+I42 -> 0
A43: Controle formiga manutenção | B43: =Tecno!B43 -> 1.4 | C43: =Tecno!C43 -> 0 | D43: =B43*Componentes!$J$12+C43*Componentes!$J$13 -> 19.95 | E43: =IF(Tecno!E43<>"",Tecno!E43,"") -> Formicida granulado | F43: =Tecno!F43 -> 0.6 | G43: =F43*Componentes!$E$55 -> 26.46 | H43: =IF(Tecno!H43<>"",Tecno!H43,"") ->  | J43: =D43+G43+I43 -> 46.41
A44: Patrolamento Aceiro | B44: =Tecno!B44 -> 0 | C44: =Tecno!C44 -> 0 | D44: =B44*Componentes!$J$12+C44*Componentes!$J$13 -> 0 | E44: =IF(Tecno!E44<>"",Tecno!E44,"") ->  | F44: =Tecno!F44 -> 0 | H44: =IF(Tecno!H44<>"",Tecno!H44,"") ->  | I44: =Componentes!$J$28*C44 -> 0 | J44: =D44+G44+I44 -> 0
A45: Demais Manutenções | J45: =SUM(J41:J44)+Componentes!$H$4 -> 246.41
A47: Controle formiga manutenção | B47: =Tecno!B47 -> 1.4 | C47: =Tecno!C47 -> 0 | D47: =B47*Componentes!$J$12+C47*Componentes!$J$13 -> 19.95 | E47: =IF(Tecno!E47<>"",Tecno!E47,"") -> Formicida granulado | F47: =Tecno!F47 -> 0.6 | G47: =F47*Componentes!$E$55 -> 26.46 | H47: =IF(Tecno!H47<>"",Tecno!H47,"") ->  | J47: =D47+G47+I47 -> 46.41
A48: Patrolamento Aceiro | B48: =Tecno!B48 -> 0 | C48: =Tecno!C48 -> 0 | D48: =B48*Componentes!$J$12+C48*Componentes!$J$13 -> 0 | E48: =IF(Tecno!E48<>"",Tecno!E48,"") ->  | F48: =Tecno!F48 -> 0 | H48: =IF(Tecno!H48<>"",Tecno!H48,"") ->  | I48: =Componentes!$J$28*C48 -> 0 | J48: =D48+G48+I48 -> 0
J49: =SUM(J47:J48)+Componentes!$H$4 -> 246.41
A50: Primeiro Desbaste
B51: Ano: | C51: 8
A52: Marcação | B52: =Tecno!$B$62 -> 12 | D52: =B52*Componentes!$J$12 -> 171 | J52: =D52+G52+I52 -> 171
A53: Desrama | B53: =Tecno!$B$62 -> 12 | D53: =B53*Componentes!$J$12 -> 171 | H53: =IF(Tecno!H53<>"",Tecno!H53,"") ->  | J53: =D53+G53+I53 -> 171
J54: =SUM(J52:J53) -> 342
A55: Segundo Desbaste
B56: Ano: | C56: 12
A57: Marcação | B57: =Tecno!$B$62*1.2 -> 14.4 | D57: =B57*Componentes!$J$12 -> 205.2 | J57: =D57+G57+I57 -> 205.2
A58: Desrama | B58: =Tecno!$B$62*1.2 -> 14.4 | D58: =B58*Componentes!$J$12 -> 205.2 | H58: =IF(Tecno!H58<>"",Tecno!H58,"") ->  | J58: =D58+G58+I58 -> 205.2
J59: =SUM(J57:J58) -> 410.4
A60: Corte Raso
B61: Ano: | C61: 18
A62: Patrolamento Estradas | C62: =Tecno!C48 -> 0 | D62: =(C62*Componentes!J13)*4 -> 0 | H62: =Tecno!H48 -> 0 | J62: =D62+G62+I62 -> 0
J63: =SUM(J62) -> 0
